Workbook

Sheet Indice
B2: SÍNTESE ESTATÍSTICA CANDIDATURAS 2017
B3: PEDIDO ÚNICO, ATENDIMENTOS DO PARCELÁRIO E FORMULÁRIOS IB
B5: CANDIDATURAS PU 2017 | D5: =Glossário!B4 -> GLOSSÁRIO DE SIGLAS
D7: ='Nota Introdutória'!C4 -> NOTA INTRODUTÓRIA
D9: =GRÁFICO01!AA1 -> GRÁFICO 1 - NÚMERO DE CANDIDATURAS PU2017/PU2016
D11: ='QUADRO01 - CONTINENTE'!A1 -> QUADRO 1 - NÚMERO DE CANDIDATURAS, ÁREAS E ANIMAIS DECLARADOS, POR AJUDA/APOIO - PU2017/PU2016 | E11: ='QUADRO01 - CONTINENTE'!A2 -> CONTINENTE
E13: ='QUADRO01 - MADEIRA'!A2 -> MADEIRA
D15: =GRÁFICO02!AB1 -> GRÁFICO 2 - N.º DE CANDIDATURAS, POR AJUDA / APOIO - PU2017/PU2016 | E15: =GRÁFICO02!$AD$1 -> CONTINENTE
E17: =GRÁFICO02!$AD$2 -> MADEIRA
D19: =GRÁFICO03!AB1 -> GRÁFICO 3 - ÁREAS (HA), POR AJUDA / APOIO - PU2017/PU2016 | E19: =GRÁFICO03!$AD$1 -> CONTINENTE
E21: =GRÁFICO03!$AD$2 -> MADEIRA
D23: =GRÁFICO04!AA1 -> GRÁFICO 4 - MAA - ANIMAIS (CN) DECLARADOS - PU2017/PU2016
D25: ='QUADRO02 - CONTINENTE'!A1 -> QUADRO 2 - NÚMERO DE CANDIDATURAS E ÁREAS (HA) DECLARADAS, POR CULTURA - PU2017 | E25: ='QUADRO02 - CONTINENTE'!A2 -> CONTINENTE
E27: ='QUADRO02 - MADEIRA'!A2 -> MADEIRA
D29: ='QUADRO03 - CONTINENTE'!A1 -> QUADRO 3 - ÁREAS (HA) DOS CEREAIS POR VARIEDADE / FINALIDADE - PU2017 | E29: ='QUADRO03 - CONTINENTE'!A3 -> CONTINENTE
E31: ='QUADRO03 - MADEIRA'!A3 -> MADEIRA
D33: ='QUADRO04 - CONTINENTE'!A1 -> QUADRO 4 - ÁREAS (HA) DOS HORTÍCOLAS POR FINALIDADE - PU2017 | E33: ='QUADRO04 - CONTINENTE'!A2 -> CONTINENTE
E35: ='QUADRO04 - MADEIRA'!A2 -> MADEIRA
D37: ='QUADRO05 - CONTINENTE'!A1 -> QUADRO 5 - ÁREAS (HA) DE OLIVAL E VINHA POR VARIEDADE / FINALIDADE - PU2017 | E37: ='QUADRO05 - CONTINENTE'!A2 -> CONTINENTE
E39: ='QUADRO05 - MADEIRA'!A2 -> MADEIRA
D41: =QUADRO06!A1 -> QUADRO 6 - N.º DE CANDIDATURAS E ÁREAS (HA) DECLARADAS, POR CULTURA RPB - PU2017
D43: =QUADRO07!A1 -> QUADRO 7 - N.º DE CANDIDATURAS E ÁREAS (HA) DECLARADAS, POR CULTURA RPA - PU2017
D45: =GRÁFICO05!AA1 -> GRÁFICO 5 - TRANSFERÊNCIAS - N.º DE COMUNICAÇÕES (MODELO T) - PU2017
D47: =GRÁFICO06!AA1 -> GRÁFICO 6 - TRANSFERÊNCIAS - DIREITOS/ÁREA (HA) (MODELO T) - PU2017
D49: =GRÁFICO07!AA4 -> GRÁFICO 7 - TRANSFERÊNCIAS - N.º DE COMUNICAÇÕES POR TIPO (MODELO T) - PU2017
D51: =GRÁFICO08!AA4 -> GRÁFICO 8 - TRANSFERÊNCIAS - DIREITOS POR TIPO (MODELO T) - PU2017
D53: ='QUADRO08 - CONTINENTE'!A1 -> QUADRO 8 - N.º DE CANDIDATURAS, ÁREAS (HA) E ANIMAIS DECLARADOS, POR MEDIDA MAA - PU2017 | E53: ='QUADRO08 - CONTINENTE'!A3 -> CONTINENTE
E55: ='QUADRO08 - MADEIRA'!A3 -> MADEIRA
D57: =QUADRO09!A1 -> QUADRO 9 - N.º DE CANDIDATURAS PU E POR REGIÃO - PU2017/PU2016
D59: =QUADRO09!AA1 -> GRÁFICO 9 - NÚMERO DE CANDIDATURAS PU, POR REGIÃO - PU2017
D61: =QUADRO09!AA2 -> GRÁFICO 10 - NÚMERO DE CANDIDATURAS PU, POR REGIÃO - PU2016
D63: =QUADRO10!A1 -> QUADRO 10 - N.º DE CANDIDATURAS RPB, ÁREA (HA) E POR REGIÃO - PU2017
D65: =QUADRO10!AA1 -> GRÁFICO 11 - NÚMERO DE CANDIDATURAS RPB, POR REGIÃO - PU2017
D67: =QUADRO10!AA2 -> GRÁFICO 12 - ÁREA RPB, POR REGIÃO - PU2017
D69: =QUADRO11!A1 -> QUADRO 11 - N.º DE CANDIDATURAS RPA, ÁREA (HA), POR REGIÃO - PU2017
D71: =QUADRO11!AA1 -> GRÁFICO 13 - NÚMERO DE CANDIDATURAS RPA, POR REGIÃO - PU2017
D73: =QUADRO11!AA2 -> GRÁFICO 14 - ÁREA RPA, POR REGIÃO - PU2017
D75: =QUADRO12!A1 -> QUADRO 12 - N.º DE CANDIDATURAS MZD, ÁREA (HA) E POR REGIÃO - PU2017/PU2016
D77: =QUADRO12!AA1 -> GRÁFICO 15 - NÚMERO DE CANDIDATURAS MZD, POR REGIÃO - PU2017
D79: =QUADRO12!AA2 -> GRÁFICO 16 - ÁREA MZD, POR REGIÃO - PU2017
D81: =QUADRO12!AA3 -> GRÁFICO 17 - NÚMERO DE CANDIDATURAS MZD, POR REGIÃO - PU2016
D83: =QUADRO12!AA4 -> GRÁFICO 18 - ÁREA MZD, POR REGIÃO - PU2016
D85: =QUADRO13!A1 -> QUADRO 13 - N.º DE CANDIDATURAS MAA, ÁREA (HA) E ANIMAIS (CN), POR REGIÃO - PU2017/PU2016
D87: =QUADRO13!AA1 -> GRÁFICO 19 - NÚMERO DE CANDIDATURAS MAA, POR REGIÃO - PU2017
D89: =QUADRO13!AA2 -> GRÁFICO 20 - ÁREA MAA, POR REGIÃO - PU2017
D91: =QUADRO13!AA3 -> GRÁFICO 21 - ANIMAIS MAA, POR REGIÃO - PU2017
D93: =QUADRO13!AA4 -> GRÁFICO 22 - NÚMERO DE CANDIDATURAS MAA, POR REGIÃO - PU2016
D95: =QUADRO13!AA5 -> GRÁFICO 23 - ÁREA MAA, POR REGIÃO - PU2016
D97: =QUADRO13!AA6 -> GRÁFICO 24 - ANIMAIS MAA, POR REGIÃO - PU2016
D99: =QUADRO14!B1 -> QUADRO 14 - N.º DE CANDIDATURAS PU POR ENTIDADE RECETORA - PU2017/PU2016
B103: ATENDIMENTOS DO PARCELÁRIO EM 2017 | D103: =QUADRO15!A1 -> QUADRO 15 - Nº DE ATENDIMENTOS DE PARCELÁRIO, NO PERÍODO DE CANDIDATURAS DO PU2017, POR ENTIDADE (ACUMULADO)
D105: =GRÁFICO25!AA1 -> GRÁFICO 25 - DISTRIBUIÇÃO DO ATENDIMENTO DO PARCELÁRIO, POR ENTIDADE (ACUMULADO) - PU2017
D107: =QUADRO16!A1 -> QUADRO 16 - Nº DE ATENDIMENTOS DE PARCELÁRIO, NO PERÍODO DE CANDIDATURAS, POR ENTIDADE - PU2017/PU2017
D109: =QUADRO17!A1 -> QUADRO 17 - COMPARAÇÃO DO Nº DE ATENDIMENTOS DE PARCELÁRIO, NO PERÍODO DE CANDIDATURAS - PU2017/PU2016
D111: =QUADRO17!AA1 -> GRÁFICO 26 - COMPARAÇÃO DO N.º DE ATENDIMENTOS DO PARCELÁRIO - PU2017/PU2016
D113: =QUADRO18!A1 -> QUADRO 18 - TIPOS DE AÇÕES EFETUADAS NAS PARCELAS (ACUMULADO) - PU2017
D115: =QUADRO19!A1 -> QUADRO 19 - VISITAS DE CAMPO PARCELÁRIO NO PERÍODO DE 01-03-2017 A 26-06-2017 (ACUMULADO)
B119: FORMULÁRIOS IB 2017 | D119: =QUADRO20E21!A1 -> QUADRO 20 - UTILIZADORES E FORMULÁRIOS IB (ACUMULADO), NO PERÍODO DE CANDIDATURAS - PU2017
D121: =QUADRO20E21!A14 -> QUADRO 21 - FORMULÁRIOS IB TIPO DE ALTERAÇÕES (ACUMULADO) - PU2017
D123: =QUADRO22!A1 -> QUADRO 22 - FORMULÁRIOS IB POR ENTIDADE (ACUMULADO), NO PERÍODO DE CANDIDATURAS PU2017

Sheet Glossário
AC1: Gráfico 01 - Número de Candidaturas por Ano
B4: GLOSSÁRIO DE SIGLAS
B6: AG-MAR2020 | C6: AUTORIDADE DE GESTÃO DO PROGRAMA OPERACIONAL MAR2020
B7: AJAP | C7: ASSOCIAÇÃO DE JOVENS AGRICULTORES DE PORTUGAL
B8: MAA | C8: MEDIDAS AGRO-AMBIENTAIS
B9: CAP | C9: CONFEDERAÇÃO DOS AGRICULTORES DE PORTUGAL
B10: CNA | C10: CONFEDERAÇÃO NACIONAL DA AGRICULTURA
B11: CNJ | C11: CONFEDERAÇÃO NACIONAL DOS JOVENS AGRICULTORES E DO DESENVOLVIMENTO RURAL
B12: CONFAGRI | C12: CONFEDERAÇÃO NACIONAL DAS COOPERATIVAS AGRÍCOLAS E DO CRÉDITO AGRÍCOLA DE PORTUGAL
B13: DGAV | C13: DIREÇÃO-GERAL DE ALIMENTAÇÃO E VETERINÁRIA
B14: DRACA | C14: DIREÇÃO REGIONAL DOS ASSUNTOS COMUNITÁRIOS DA AGRICULTURA
B15: DRADR | C15: DIREÇÃO REGIONAL DA AGRICULTURA E DESENVOLVIMENTO RURAL
B16: DRAP | C16: DIREÇÕES REGIONAIS DE AGRICULTURA E PESCAS
B17: IB | C17: IDENTIFICAÇÃO DO BENEFICIÁRIO
B18: MZD | C18: MANUTENÇÃO DA ATIVIDADE AGRÍCOLA
B19: PJA | C19: PAGAMENTOS PARA OS JOVENS AGRICULTORES
B20: PRODER | C20: PROGRAMA DE DESENVOLVIMENTO RURAL DO CONTINENTE 07-13
B21: PU | C21: PEDIDO ÚNICO
B22: RPA | C22: REGIME DA PEQUENA AGRICULTURA
B23: RPB | C23: REGIME DE PAGAMENTO BASE

Sheet Nota Introdutória
AB1: Gráfico 01 - Número de Candidaturas por Ano
C4: NOTA INTRODUTÓRIA
C7: O presente documento tem como objetivo a divulgação de uma síntese da informação relativa às candidaturas ao Pedido Único (PU), aos Atendimentos do Parcelário e aos Formulários de Identificação do Beneficiário, em 2017. No período em análise a receção de candidaturas teve início em 01-03-2017. A informação apresentada corresponde às candidaturas carregadas no sistema informático central do IFAP no final do período de candidaturas em 26-06-2017. Quando possível, é apresentada a comparação entre os dados de 2017 e os de 2016, sendo que para 2016, o início do período de receção de candidaturas verificou-se no dia 15-02-2016 e o final no dia 11-07-2016. O apuramento da informação teve como base, no caso das candidaturas do PU, as seguintes variáveis: (i) número de candidaturas rececionadas por ajuda e respetivas áreas e animais candidatos; (ii) número de candidaturas rececionadas por região; (iii) número de candidaturas rececionadas por entidade recetora. Inclui-se, também, informação relativa a transferências: (i) número e respetiva área e (ii) por tipo de transferência. No caso dos Atendimentos do Parcelário, as variáveis consideradas foram: (i) número de atendimentos do parcelário por entidade recetora; (ii) tipo de ações e (iii) númerio de visitas de campo. No que respeita aos Formulários de Identificação do Beneficiário foram analisados (i) número de utilizadores e formulários submetidos; (ii) tipo de alterações; (iii) número de formulários rececionados por entidade recetora.

Sheet GRÁFICO01
AA1: GRÁFICO 1 - NÚMERO DE CANDIDATURAS PU2017/PU2016

Sheet QUADRO01 - CONTINENTE
A1: QUADRO 1 - NÚMERO DE CANDIDATURAS, ÁREAS E ANIMAIS DECLARADOS, POR AJUDA/APOIO - PU2017/PU2016
A2: CONTINENTE
A3: AJUDA / APOIO | D3: Campanha 2017* | I3: Campanha 2016* | M3: Comparação 2017/2016
D4: Candidaturas | F4: Área | G4: Animais** | I4: Candidaturas | J4: Área | K4: Animais** | M4: Candidaturas | N4: Área | O4: Animais
D5: (nº) | E5: % Ajuda/Apoio no Total de PU | F5: (ha) | G5: (cn) | I5: (nº) | J5: (ha) | K5: (cn) | M5: (nº) | N5: (ha) | O5: (cn)
D7: [1] | E7: [2] | F7: [3] | G7: [4] | I7: [5] | J7: [6] | K7: [7] | M7: [8] = [1]/[5] | N7: [9] = [3]/[6] | O7: [10] = [4]/[7]
A8: RPB - Regime de Pagamento Base | C8: RPB | D8: 87248 | E8: =+D8/$D$23 -> 0.5138098772 | F8: 2852371.72 | H8: 0 | I8: 83449 | J8: 2792350.1 | K8: - | L8: 0 | M8: =+D8/I8 -> 1.045524812 | N8: =+F8/J8 -> 1.02149502
A9: PJA - Pagamentos para os Jovens Agricultores | C9: RJA | D9: 2918 | E9: =+D9/$D$23 -> 0.01718431622 | H9: 0 | I9: 2856 | J9: 0 | K9: - | L9: 0 | M9: =+D9/I9 -> 1.021708683
A10: RPA - Regime da Pequena Agricultura | C10: RPA | D10: 63065 | E10: 0.3713944148 | F10: 153262.21 | H10: 0 | I10: 68820 | J10: 171401.72 | K10: - | L10: 0 | M10: 0.9163760535 | N10: =+F10/J10 -> 0.8941696151
A11: Algodão | C11: ALGODAO | D11: 0 | E11: 0 | F11: 0 | H11: 0 | I11: 0 | J11: 0 | K11: - | L11: 0 | M11: =IFERROR(+D11/I11,0) -> 0 | N11: =IFERROR(+F11/J11,0) -> 0
A12: Manutenção da Atividade Agrícola | C12: MZD | D12: 122821 | E12: 0.7233018857 | F12: 2521104.9 | H12: 0 | I12: 120848 | J12: 2451676.26 | K12: - | L12: 0 | M12: 1.016326294 | N12: 1.028318845
A13: Medidas Agro-Ambientais | C13: MAA | D13: 57359 | E13: 0.3377913619 | G13: 78477.3 | H13: 0 | I13: 58027 | K13: 83395.454 | L13: 0 | M13: 0.9884881176 | O13: =+G13/K13 -> 0.941026114
A14: Prémio por Ovelha e Cabra*** | C14: POC | D14: 21060 | E14: 0.1240238861 | H14: 0 | I14: 17335 | J14: - | K14: - | L14: 0 | M14: 1.214883184
A15: Prémio por Vaca em Aleitamento*** | C15: VAL | D15: 19423 | E15: 0.1143834729 | H15: 0 | I15: 19185 | J15: - | K15: - | L15: 0 | M15: 1.012405525
A16: Prémio por Vacas Leiteiras *** | C16: VLE | D16: 6602 | E16: 0.03887966267 | H16: 0 | I16: 5546 | J16: - | K16: - | L16: 0 | M16: 1.190407501
A17: Tomate | C17: TOMATE | D17: 462 | E17: 0.002720751917 | F17: 19513.24 | H17: 0 | I17: 493 | J17: 19460.43 | K17: - | L17: 0 | M17: 0.9371196755 | N17: 1.002713712
A18: Arroz | C18: ARROZ | D18: 1096 | E18: 0.006454424461 | F18: 29541.21 | H18: 0 | I18: 1117 | J18: 29704.82 | K18: - | L18: 0 | M18: 0.9811996419 | N18: 0.9944921397
A19: Florestação de Terras Agrícolas - PRODER | C19: FTAPRODER | D19: 401 | E19: 0.002361518439 | F19: 11685.87 | H19: 0 | I19: 404 | J19: 11688.04 | K19: - | L19: 0 | M19: 0.9925742574 | N19: 0.9998143401
A20: Florestação de Terras Agrícolas - RURIS | C20: FTARURIS | D20: 2740 | E20: 0.01613606115 | F20: 41809.9 | H20: 0 | I20: 2802 | J20: 42855.21 | K20: - | L20: 0 | M20: 0.9778729479 | N20: 0.9756083333
A21: Florestação de Terras Agrícolas - Reg 2080 | C21: FTA2080 | D21: 3335 | E21: 0.01964005983 | F21: 70832.62 | H21: 0 | I21: 3861 | J21: 88271.48 | K21: - | L21: 0 | M21: 0.8637658638 | N21: 0.8024406071
A22: Florestação de Terras Agrícolas - Reg 2328 | C22: FTA2328 | D22: 10 | E22: 5.889073413e-05 | F22: 350.26 | H22: 0 | I22: 25 | J22: 754.72 | K22: - | L22: 0 | M22: 0.4 | N22: 0.4640926436
A23: Total de PU no Continente | D23: 169806 | E23: - | H23: 0 | I23: 168973 | L23: 0 | M23: 1.004929782
D24: 2017 | I24: 2016
A26: * Não foram considerados os PU cujos beneficiários apresentaram pedido de anulação das respetivas candidaturas.
A27: ** Animais em CN.
A28: *** O n.º de candidaturas corresponde às declarações de intenção para 2017 confirmadas no PU 2017

Sheet QUADRO01 - MADEIRA
A1: QUADRO 1 - NÚMERO DE CANDIDATURAS, ÁREAS E ANIMAIS DECLARADOS, POR AJUDA/APOIO - PU2017/PU2016
A2: MADEIRA
A3: AJUDA / APOIO | D3: Campanha 2017* | I3: Campanha 2016* | M3: Comparação 2017/2016
D4: Candidaturas | F4: Área | G4: Animais** | I4: Candidaturas | J4: Área | K4: Animais** | M4: Candidaturas | N4: Área | O4: Animais
D5: (nº) | E5: % Ajuda/Apoio no Total de PU | F5: (ha) | G5: (nº) | I5: (nº) | J5: (ha) | K5: (nº) | M5: (nº) | N5: (ha) | O5: (cn)
D7: [1] | E7: [2] | F7: [3] | G7: [4] | I7: [1] | J7: [3] | K7: [4] | M7: [8] = [1]/[5] | N7: [9] = [3]/[6] | O7: [10] = [4]/[7]
A8: Manutenção da Atividade Agrícola | C8: MZD | D8: 11166 | E8: =+D8/$D$16 -> 0.9837018765 | F8: 3288.34 | I8: 11168 | J8: 3288.48 | K8: - | M8: =+D8/I8 -> 0.9998209169 | N8: =+F8/J8 -> 0.9999574271
A9: Medidas Agro-Ambientais | C9: MAA | D9: 1761 | E9: =+D9/$D$16 -> 0.1551405163 | I9: 1761 | M9: =+D9/I9 -> 1
A10: POSEI - Abate Suínos | C10: POSSUI | D10: 18 | E10: 0.001585763369 | I10: 18 | J10: - | K10: - | M10: 1
A11: POSEI - Abate Bovinos | C11: POSPAB | D11: 449 | E11: 0.03955598626 | I11: 448 | J11: - | K11: - | M11: 1.002232143
A12: POSEI - Vacas Leiteiras | C12: POSVLE | D12: 26 | E12: 0.002290547088 | I12: 26 | J12: - | K12: - | M12: 1
A13: POSEI - Medida 1 | C13: POSMED1 | D13: 11184 | E13: 0.9852876399 | F13: 3329.07 | I13: 11186 | J13: 3329.21 | K13: - | M13: 0.9998212051 | N13: =+F13/J13 -> 0.999957948
A14: POSEI - Vinha | C14: POSVIN | D14: 1202 | E14: 0.1058937539 | F14: 337.22 | I14: 1200 | J14: 336.62 | K14: - | M14: 1.001666667 | N14: 1.001782425
A15: POSEI - Banana | C15: POSBAN | D15: 3015 | E15: 0.2656153643 | F15: 636.36 | I15: 3017 | J15: 636.45 | K15: - | M15: 0.9993370898 | N15: 0.9998585906
A16: Total de PU na Madeira | D16: 11351 | E16: - | I16: 11354 | M16: 0.9997357759
D17: 2017 | I17: 2016
A19: * Não foram considerados os PU cujos beneficiários apresentaram pedido de anulação das respetivas candidaturas.
A20: ** Animais em CN.

Sheet GRÁFICO02
AA1: =CONCATENATE(AB1,AC1,AD1) -> GRÁFICO 2 - N.º DE CANDIDATURAS, POR AJUDA / APOIO - PU2017/PU2016 - CONTINENTE | AB1: GRÁFICO 2 - N.º DE CANDIDATURAS, POR AJUDA / APOIO - PU2017/PU2016 | AC1: - | AD1: CONTINENTE
AA2: =CONCATENATE(AB2,AC2,AD2) -> GRÁFICO 2 - N.º DE CANDIDATURAS, POR AJUDA / APOIO, PU2017/PU2016 - MADEIRA | AB2: GRÁFICO 2 - N.º DE CANDIDATURAS, POR AJUDA / APOIO, PU2017/PU2016 | AC2: - | AD2: MADEIRA

Sheet GRÁFICO03
AA1: =CONCATENATE(AB1,AC1,AD1) -> GRÁFICO 3 - ÁREAS (HA), POR AJUDA / APOIO - PU2017/PU2016 - CONTINENTE | AB1: GRÁFICO 3 - ÁREAS (HA), POR AJUDA / APOIO - PU2017/PU2016 | AC1: - | AD1: CONTINENTE
AA2: =CONCATENATE(AB2,AC2,AD2) -> GRÁFICO 3 - ÁREAS (HA), POR AJUDA / APOIO, PU2017/PU2016 - MADEIRA | AB2: GRÁFICO 3 - ÁREAS (HA), POR AJUDA / APOIO, PU2017/PU2016 | AC2: - | AD2: MADEIRA

Sheet GRÁFICO04
AA1: GRÁFICO 4 - MAA - ANIMAIS (CN) DECLARADOS - PU2017/PU2016

Sheet QUADRO02 - CONTINENTE
A1: QUADRO 2 - NÚMERO DE CANDIDATURAS E ÁREAS (HA) DECLARADAS, POR CULTURA - PU2017
A2: CONTINENTE
A3: NIVEL_I | C3: NIVEL_II | E3: NIVEL_III | G3: CULTURA | H3: 2017
H4: CANDIDATURAS | I4: AREA
A5: SUPERFÍCIE AGRÍCOLA | C5: CULTURAS PERMANENTES | E5: CITRINOS | G5: LARANJA | H5: 6736 | I5: 8667.14
G6: LIMÃO | H6: 306 | I6: 328.78
G7: TANGERA | H7: 5 | I7: 2.93
G8: TANGERINA | H8: 284 | I8: 880.6
G9: OUTROS CITRINOS | H9: 893 | I9: 493.38
G10: SUB-TOTAL DE CITRINOS | H10: 7673 | I10: 10372.83
E11: FRUTOS DE CASCA RIJA | G11: ALFARROBA | H11: 1545 | I11: 5050.11
G12: AMENDOA | H12: 12606 | I12: 25663.24
G13: AVELÃ | H13: 446 | I13: 243.62
G14: CASTANHA | H14: 20406 | I14: 38045.37
G15: NOZ | H15: 2529 | I15: 2512.98
G16: PINHÃO | H16: 1297 | I16: 30930.14
G17: PISTACIOS | H17: 33 | I17: 75.88
G18: OUTROS FRUTOS SECOS | H18: 1385 | I18: 1117.41
G19: SUB-TOTAL DE FRUTOS DE CASCA RIJA | H19: 34717 | I19: 103638.75
E20: FRUTOS FRESCOS (EXCETO CITRINOS) | G20: AMEIXA | H20: 699 | I20: 971.74
G21: CEREJA | H21: 4178 | I21: 4479.76
G22: DAMASCO | H22: 119 | I22: 374.2
G23: FIGO | H23: 1263 | I23: 1116.39
G24: GINJA | H24: 40 | I24: 50.84
G25: MAÇÃ | H25: 6676 | I25: 9164.8
G26: MARMELO | H26: 870 | I26: 1231.94
G27: NÊSPERA | H27: 38 | I27: 7.36
G28: PERA | H28: 1693 | I28: 6353.03
G29: PÊSSEGO | H29: 1297 | I29: 2529.34
G30: POMARES MISTOS DE FRUTOS FRESCOS | H30: 1 | I30: 0.23
G31: OUTRAS FRUTOS FRESCOS | H31: 14561 | I31: 2657.96
G32: SUB-TOTAL DE FRUTOS FRESCOS (EXCETO CITRINOS) | H32: 26941 | I32: 28937.59
A33: SUPERFÍCIE AGRÍCOLA | C33: CULTURAS PERMANENTES | E33: FRUTOS SUB TROPICAIS | G33: ABACATE | H33: 111 | I33: 489
G34: ANANÁS | H34: 0 | I34: 0
G35: ANONA | H35: 2 | I35: 2.17
G36: BANANA | H36: 3 | I36: 2.21
G37: DIOSPIRO | H37: 130 | I37: 164.34
G38: FIGO DA INDIA | H38: 109 | I38: 445.55
G39: KIWI | H39: 763 | I39: 2140.69
G40: MARACUJÁ | H40: 19 | I40: 19.09
G41: PAPAIA | H41: 0 | I41: 0
G42: ROMÃ | H42: 78 | I42: 288.2
G43: OUTROS FRUTOS SUB-TROPICAIS | H43: 192 | I43: 57.92
G44: SUB-TOTAL DE FRUTOS SUB TROPICAIS | H44: 1364 | I44: 3609.17
E45: MISTO DE CULTURAS PERMANENTES | G45: MISTO CULTURAS PERMANENTES | H45: 32248 | I45: 18379.3
G46: SUB-TOTAL DE MISTO CULTURAS PERMANENTES | H46: 32248 | I46: 18379.3
E47: OLIVAL | G47: OLIVAL | H47: 81859 | I47: 277686.26
G48: SUB-TOTAL DE OLIVAL | H48: 81859 | I48: 277686.26
E49: PEQUENOS FRUTOS | G49: AMORA | H49: 99 | I49: 89.45
G50: FRAMBOESA | H50: 306 | I50: 409.32
G51: GROSELHA | H51: 113 | I51: 85.18
G52: MEDRONHO | H52: 384 | I52: 1574.56
G53: MIRTILO | H53: 1081 | I53: 1487.35
G54: SABUGUEIRO (BAGA) | H54: 318 | I54: 201.37
G55: OUTROS PEQUENOS FRUTOS | H55: 2220 | I55: 507.41
G56: SUB-TOTAL DE PEQUENOS FRUTOS | H56: 4230 | I56: 4354.64
E57: POVOAMENTO DE SOBREIRO | G57: SOBREIRO PARA PRODUÇÃO DE CORTIÇA | H57: 7751 | I57: 239376.64
G58: SUB-TOTAL DE POVOAMENTO DE SOBREIRO | H58: 7751 | I58: 239376.64
E59: PRADOS PERMANENTES | G59: PASTAGENS ARBUSTIVAS | H59: 73320 | I59: 233462.2
G60: PASTAGENS EM PRÁTICAS LOCAIS | H60: 10842 | I60: 172200.52
G61: PASTAGENS PERMANENTES | H61: 59842 | I61: 992803.96
G62: SUB-TOTAL DE PRADOS PERMANENTES | H62: 96792 | I62: 1398466.68
E63: VINHA | G63: VINHA | H63: 71046 | I63: 120600.16
G64: SUB-TOTAL DE VINHA | H64: 71046 | I64: 120600.16
A65: SUPERFÍCIE AGRÍCOLA | C65: CULTURAS PERMANENTES | E65: OUTRAS CULTURAS PERMANENTES | G65: CANA DE AÇÚCAR | H65: 3 | I65: 2.24
G66: CHÁ | H66: 0 | I66: 0
G67: LUPULO | H67: 4 | I67: 10.8
G68: MARALFALFA | H68: 3 | I68: 4.78
G69: VIME | H69: 0 | I69: 0
G70: VIVEIROS | H70: 156 | I70: 146.39
G71: OUTRAS CULTURAS PERMANENTES | H71: 619 | I71: 341.98
G72: SUB-TOTAL DE OUTRAS CULTURAS PERMANENTES | H72: 781 | I72: 506.19
E73: SUB-TOTAL DE CULTURAS PERMANENTES | H73: 154461 | I73: 2205928.21
C74: CULTURAS TEMPORÁRIAS | E74: CEREAIS | G74: ARROZ | H74: 1186 | I74: 28616.92
G75: AVEIA | H75: 17963 | I75: 60789.69
G76: CENTEIO | H76: 11669 | I76: 15179.97
G77: CEVADA | H77: 2037 | I77: 22992.98
G78: MILHO | H78: 56050 | I78: 103951.33
G79: SORGO | H79: 2625 | I79: 7622.74
G80: TRIGO | H80: 5491 | I80: 27195.02
G81: TRITICALE | H81: 1317 | I81: 16581.71
G82: OUTROS CEREAIS | H82: 1465 | I82: 1194.43
G83: SUB-TOTAL DE CEREAIS | H83: 76494 | I83: 284124.79
E84: FLORES | G84: FLORES E PLANTAS ORNAMENTAIS | H84: 343 | I84: 463.68
G85: SUB-TOTAL DE FLORES | H85: 343 | I85: 463.68
E86: FORRAGEIRAS | G86: AZEVEM | H86: 4142 | I86: 17039.83
G87: BROMUS | H87: 0 | I87: 0
G88: CONSOCIAÇÕES ANUAIS E OUTRAS CULTURAS FORRAGEIRAS | H88: 21276 | I88: 101817.26
G89: FESTUCA | H89: 12 | I89: 15.67
G90: PANASCO | H90: 35 | I90: 22.84
G91: PRADOS TEMPORÁRIOS (PASTOREIO) | H91: 65487 | I91: 619183.87
G92: SERRADELA | H92: 8 | I92: 94.5
G93: SUB-TOTAL DE FORRAGEIRAS | H93: 80430 | I93: 738173.97
A94: SUPERFÍCIE AGRÍCOLA | C94: CULTURAS TEMPORÁRIAS | E94: HORTICOLAS | G94: ABÓBORAS E ABOBORINHAS | H94: 4595 | I94: 5051.38
G95: AGRIÃO | H95: 7 | I95: 1.03
G96: ALFACE | H96: 177 | I96: 74.27
G97: ALHO | H97: 87 | I97: 645.63
G98: ALHO FRANCÊS | H98: 37 | I98: 108.52
G99: BATATA | H99: 30680 | I99: 7690.42
G100: BATATA DOCE | H100: 193 | I100: 442.37
G101: BERINGELA | H101: 50 | I101: 74.27
G102: BETERRABA | H102: 216 | I102: 92.02
G103: CEBOLA | H103: 539 | I103: 604.59
G104: CENOURA | H104: 87 | I104: 1181.5
G105: CHUCHU | H105: 5 | I105: 8.48
G106: COURGETTE | H106: 100 | I106: 173.65
G107: COUVE | H107: 558 | I107: 1545.86
G108: MELANCIA | H108: 274 | I108: 508.41
G109: MELÃO | H109: 469 | I109: 1825.42
G110: MELOA | H110: 60 | I110: 128.58
G111: MORANGO | H111: 224 | I111: 254.41
G112: MOSTARDA | H112: 6 | I112: 1.56
G113: NABIÇA | H113: 136 | I113: 45.95
G114: NABO | H114: 597 | I114: 712.42
G115: PEPINO | H115: 29 | I115: 6.62
G116: PIMENTO | H116: 274 | I116: 1023.93
G117: RABANETE | H117: 3 | I117: 1.59
G118: RÁBANO | H118: 1 | I118: 0.03
G119: RÚCULA | H119: 0 | I119: 0
G120: RUTABAGA | H120: 1 | I120: 0.02
G121: TOMATE | H121: 633 | I121: 19674.92
G122: OUTRAS HORTÍCOLAS | H122: 64941 | I122: 15039.08
G123: SUB-TOTAL DE HORTICOLAS | H123: 78742 | I123: 56916.93
A124: SUPERFÍCIE AGRÍCOLA | C124: CULTURAS TEMPORÁRIAS | E124: LEGUMINOSAS | G124: ANAFA | H124: 1 | I124: 0.15
G125: CONSOCIAÇÃO DE FIXADORAS DE AZOTO | H125: 144 | I125: 665.05
G126: ERVILHA | H126: 518 | I126: 4282.95
G127: ERVILHACA | H127: 64 | I127: 444.36
G128: FAVA | H128: 878 | I128: 1268.4
G129: FEIJÃO | H129: 6535 | I129: 3059.97
G130: GRÃO DE BICO | H130: 971 | I130: 1589.87
G131: LUZERNA | H131: 412 | I131: 1580.72
G132: TREMOCILHA | H132: 1088 | I132: 9869.28
G133: TREMOÇO | H133: 1876 | I133: 1656.23
G134: TREVO | H134: 202 | I134: 1864.59
G135: OUTRAS LEGUMINOSAS SECAS | H135: 410 | I135: 489.88
G136: SUB-TOTAL DE LEGUMINOSAS | H136: 11840 | I136: 26771.45
E137: OLEAGINOSAS | G137: AMENDOIM | H137: 32 | I137: 725.22
G138: COLZA | H138: 180 | I138: 4301.8
G139: GIRASSOL | H139: 852 | I139: 12754.27
G140: LINHO | H140: 3 | I140: 0.59
G141: SOJA | H141: 10 | I141: 89.6
G142: OUTRAS OLEAGINOSAS | H142: 57 | I142: 413.79
G143: SUB-TOTAL DE OLEAGINOSAS | H143: 1035 | I143: 18285.27
E144: POUSIOS | G144: POUSIO | H144: 43477 | I144: 101814.57
G145: SUB-TOTAL DE POUSIO | H145: 43477 | I145: 101814.57
E146: OUTRAS CULTURAS TEMPORÁRIAS | G146: ALGODÃO | H146: 0 | I146: 0
G147: CÂNHAMO | H147: 1 | I147: 0.75
G148: INHAME | H148: 4 | I148: 1.19
G149: PLANTAS AROM., MEDICINAIS E CONDIMENTARES | H149: 378 | I149: 1302.35
G150: TABACO | H150: 6 | I150: 1.96
G151: SUB-TOTAL DE OUTRAS CULTURAS TEMPORÁRIAS | H151: 389 | I151: 1306.25
E152: SUB-TOTAL DE CULTURAS TEMPORÁRIAS | H152: 147437 | I152: 1227856.91
C153: SUB-TOTAL DE SUPERFICIE AGRÍCOLA | H153: 168350 | I153: 3433785.12
A154: SUPERFÍCIE FLORESTAL | C154: SUPERFÍCIES FLORESTAIS | E154: POVOAMENTO FLORESTAL | G154: ACEIRO FLORESTAL | H154: 281 | I154: 229.26
G155: GALERIA RIPÍCOLA FLORESTAL | H155: 17 | I155: 162.91
G156: MEDRONHEIRO | H156: 28 | I156: 405.61
G157: POVOAMENTO AZINHEIRAS | H157: 426 | I157: 13004.65
G158: POVOAMENTO CARVALHO NEGRAL | H158: 153 | I158: 474.55
G159: POVOAMENTO CASTANHEIRO | H159: 45 | I159: 38.12
G160: POVOAMENTO DE EUCALIPTO | H160: 275 | I160: 5974.36
G161: POVOAMENTO DE PINHEIRO MANSO | H161: 1241 | I161: 30684.03
G162: POVOAMENTO DE SOBREIROS | H162: 3365 | I162: 77987.99
G163: POVOAMENTO F MISTO | H163: 1074 | I163: 6305.41
G164: POVOAMENTO MISTO QUERCUS(SOB.AZENH.CARVAL/NEGRAL) | H164: 53 | I164: 284.91
G165: SALIX | H165: 0 | I165: 0
G166: POVOAMENTO OUTRAS FOLHOSAS | H166: 2200 | I166: 10739.11
G167: POVOAMENTO OUTRAS RESINOSAS | H167: 1665 | I167: 10273.53
G168: SUB-TOTAL DE POVOAMENTO FLORESTAL | H168: 7203 | I168: 156564.44
E169: SUPERFÍCIE NÃO ARBORIZADA | G169: MACIÇOS OU FORMAÇÕES RELIQUIAIS OU NOTÁVEIS | H169: 33 | I169: 18.78
G170: SUPERFÍCIE ARBUSTIVA NÃO PASTOREÁVEL | H170: 11851 | I170: 24406.55
G171: OUTRAS SUPERFÍCIES FLORESTAIS | H171: 1078 | I171: 5721.33
G172: SUB-TOTAL DE SUPERFÍCIE NÃO ARBORIZADA | H172: 12750 | I172: 30146.66
E173: SUB-TOTAL DE SUPERFÍCIES FLORESTAIS | H173: 18402 | I173: 186711.1
C174: SUB-TOTAL DE SUPERFÍCIE FLORESTAL | H174: 18402 | I174: 186711.1
A175: ELEMENTOS LINEARES E DA PAISAGEM | C175: ELEMENTOS LINEARES E DA PAISAGEM | E175: ELEMENTOS LINEARES E DA PAISAGEM | G175: CABECEIRAS CULT. PERMANENTES -ÁREA ÚTIL | H175: 20131 | I175: 4844.11
G176: ELEMENTO LINEAR EM ORIZICULTURA-ÁREA ÚTIL | H176: 786 | I176: 1054.71
G177: ELEMENTO LINEAR SEBE OU CORTA-VENTO-ÁREA ÚTIL | H177: 301 | I177: 50.32
G178: EP-BOSQUETE E FORMAÇÕES RELIQUIAIS-ÁREA ÚTIL | H178: 20 | I178: 3.08
G179: GALERIA RIPÍCOLA - ÁREA ÚTIL | H179: 1440 | I179: 585.9
G180: LINHAS DE ÁGUA - ÁREA ÚTIL | H180: 1560 | I180: 706.11
G181: SUB-TOTAL DE ELEMENTOS LINEARES E DA PAISAGEM | H181: 23769 | I181: 7244.23
E182: SUB-TOTAL DE ELEMENTOS LINEARES E DA PAISAGEM | H182: 23769 | I182: 7244.23
C183: SUB-TOTAL DE ELEMENTOS LINEARES E DA PAISAGEM | H183: 23769 | I183: 7244.23
A184: ZONAS DE PROTEÇÃO | C184: ZONAS DE PROTEÇÃO | E184: ZONAS DE PROTEÇÃO | G184: BOSQUETES | H184: 1558 | I184: 197.36
G185: GALERIA RIPÍCOLA | H185: 418 | I185: 151.61
G186: SUB-TOTAL DE ZONAS DE PROTEÇÃO | H186: 1960 | I186: 348.97
E187: SUB-TOTAL DE ZONAS DE PROTEÇÃO | H187: 1960 | I187: 348.97
C188: SUB-TOTAL DE ZONAS DE PROTEÇÃO | H188: 1960 | I188: 348.97
A189: ÁREA TOTAL | I189: =+I188+I183+I174+I153 -> 3628089.42

Sheet QUADRO02 - MADEIRA
A1: QUADRO 2 - NÚMERO DE CANDIDATURAS E ÁREAS (HA) DECLARADAS, POR CULTURA - PU2017
A2: MADEIRA
A3: NIVEL_I | C3: NIVEL_II | E3: NIVEL_III | G3: CULTURA | H3: 2017
H4: CANDIDATURAS | I4: AREA
A5: SUPERFÍCIE AGRÍCOLA | C5: CULTURAS PERMANENTES | E5: CITRINOS | G5: LARANJA | H5: 51 | I5: 2.37
G6: LIMÃO | H6: 142 | I6: 24.01
G7: TANGERA | H7: 0 | I7: 0
G8: TANGERINA | H8: 39 | I8: 4.82
G9: OUTROS CITRINOS | H9: 24 | I9: 3
G10: SUB-TOTAL DE CITRINOS | H10: 246 | I10: 34.2
E11: FRUTOS DE CASCA RIJA | G11: ALFARROBA | H11: 0 | I11: 0
G12: AMENDOA | H12: 0 | I12: 0
G13: AVELÃ | H13: 0 | I13: 0
G14: CASTANHA | H14: 183 | I14: 85.44
G15: NOZ | H15: 22 | I15: 4.51
G16: PINHÃO | H16: 0 | I16: 0
G17: PISTACIOS | H17: 0 | I17: 0
G18: OUTROS FRUTOS SECOS | H18: 11 | I18: 1.04
G19: SUB-TOTAL DE FRUTOS DE CASCA RIJA | H19: 206 | I19: 90.99
E20: FRUTOS FRESCOS (EXCETO CITRINOS) | G20: AMEIXA | H20: 71 | I20: 6.23
G21: CEREJA | H21: 151 | I21: 21.82
G22: DAMASCO | H22: 2 | I22: 0.04
G23: FIGO | H23: 40 | I23: 2.15
G24: GINJA | H24: 4 | I24: 0.33
G25: MAÇÃ | H25: 282 | I25: 44.88
G26: MARMELO | H26: 0 | I26: 0
G27: NÊSPERA | H27: 9 | I27: 0.53
G28: PERA | H28: 14 | I28: 1.91
G29: PÊSSEGO | H29: 4 | I29: 0.11
G30: POMARES MISTOS DE FRUTOS FRESCOS | H30: 75 | I30: 15.22
G31: OUTRAS FRUTOS FRESCOS | H31: 261 | I31: 36.12
G32: SUB-TOTAL DE FRUTOS FRESCOS (EXCETO CITRINOS) | H32: 816 | I32: 129.34
A33: SUPERFÍCIE AGRÍCOLA | C33: CULTURAS PERMANENTES | E33: FRUTOS SUB TROPICAIS | G33: ABACATE | H33: 44 | I33: 2.95
G34: ANANÁS | H34: 0 | I34: 0
G35: ANONA | H35: 183 | I35: 17.27
G36: BANANA | H36: 3017 | I36: 636.51
G37: DIOSPIRO | H37: 2 | I37: 0.23
G38: FIGO DA INDIA | H38: 7 | I38: 1.17
G39: KIWI | H39: 14 | I39: 2.5
G40: MARACUJÁ | H40: 31 | I40: 5.84
G41: PAPAIA | H41: 9 | I41: 1.44
G42: ROMÃ | H42: 3 | I42: 0.17
G43: OUTROS FRUTOS SUB-TROPICAIS | H43: 2605 | I43: 286.15
G44: SUB-TOTAL DE FRUTOS SUB TROPICAIS | H44: 5473 | I44: 954.23
E45: MISTO DE CULTURAS PERMANENTES | G45: MISTO CULTURAS PERMANENTES | H45: 184 | I45: 22.86
G46: SUB-TOTAL DE MISTO CULTURAS PERMANENTES | H46: 184 | I46: 22.86
E47: OLIVAL | G47: OLIVAL | H47: 1 | I47: 0.02
G48: SUB-TOTAL DE OLIVAL | H48: 1 | I48: 0.02
E49: PEQUENOS FRUTOS | G49: AMORA | H49: 5 | I49: 0.46
G50: FRAMBOESA | H50: 2 | I50: 0.65
G51: GROSELHA | H51: 0 | I51: 0
G52: MEDRONHO | H52: 0 | I52: 0
G53: MIRTILO | H53: 5 | I53: 1.11
G54: SABUGUEIRO (BAGA) | H54: 0 | I54: 0
G55: OUTROS PEQUENOS FRUTOS | H55: 226 | I55: 20.71
G56: SUB-TOTAL DE PEQUENOS FRUTOS | H56: 236 | I56: 22.93
E57: POVOAMENTO DE SOBREIRO | G57: SOBREIRO PARA PRODUÇÃO DE CORTIÇA | H57: 0 | I57: 0
G58: SUB-TOTAL DE POVOAMENTO DE SOBREIRO | H58: 0 | I58: 0
E59: PRADOS PERMANENTES | G59: PASTAGENS ARBUSTIVAS | H59: 129 | I59: 21.42
G60: PASTAGENS EM PRÁTICAS LOCAIS | H60: 0 | I60: 0
G61: PASTAGENS PERMANENTES | H61: 246 | I61: 206.8
G62: SUB-TOTAL DE PRADOS PERMANENTES | H62: 358 | I62: 228.22
E63: VINHA | G63: VINHA | H63: 3285 | I63: 581.27
G64: SUB-TOTAL DE VINHA | H64: 3285 | I64: 581.27
A65: SUPERFÍCIE AGRÍCOLA | C65: CULTURAS PERMANENTES | E65: OUTRAS CULTURAS PERMANENTES | G65: CANA DE AÇÚCAR | H65: 781 | I65: 89.6
G66: CHÁ | H66: 1 | I66: 0.08
G67: LUPULO | H67: 0 | I67: 0
G68: MARALFALFA | H68: 0 | I68: 0
G69: VIME | H69: 10 | I69: 0.75
G70: VIVEIROS | H70: 3 | I70: 1.17
G71: OUTRAS CULTURAS PERMANENTES | H71: 72 | I71: 6.89
G72: SUB-TOTAL DE OUTRAS CULTURAS PERMANENTES | H72: 859 | I72: 98.49
E73: SUB-TOTAL DE CULTURAS PERMANENTES | H73: 8550 | I73: 2162.55
C74: CULTURAS TEMPORÁRIAS | E74: CEREAIS | G74: ARROZ | H74: 0 | I74: 0
G75: AVEIA | H75: 96 | I75: 8.95
G76: CENTEIO | H76: 1 | I76: 0.11
G77: CEVADA | H77: 5 | I77: 5.48
G78: MILHO | H78: 25 | I78: 2.06
G79: SORGO | H79: 0 | I79: 0
G80: TRIGO | H80: 46 | I80: 6.55
G81: TRITICALE | H81: 0 | I81: 0
G82: OUTROS CEREAIS | H82: 0 | I82: 0
G83: SUB-TOTAL DE CEREAIS | H83: 142 | I83: 23.15
E84: FLORES | G84: FLORES E PLANTAS ORNAMENTAIS | H84: 59 | I84: 26.33
G85: SUB-TOTAL DE FLORES | H85: 59 | I85: 26.33
E86: FORRAGEIRAS | G86: AZEVEM | H86: 0 | I86: 0
G87: BROMUS | H87: 0 | I87: 0
G88: CONSOCIAÇÕES ANUAIS E OUTRAS CULTURAS FORRAGEIRAS | H88: 1 | I88: 0.32
G89: FESTUCA | H89: 0 | I89: 0
G90: PANASCO | H90: 0 | I90: 0
G91: PRADOS TEMPORÁRIOS (PASTOREIO) | H91: 171 | I91: 109.29
G92: SERRADELA | H92: 0 | I92: 0
G93: SUB-TOTAL DE FORRAGEIRAS | H93: 172 | I93: 109.61
A94: SUPERFÍCIE AGRÍCOLA | C94: CULTURAS TEMPORÁRIAS | E94: HORTICOLAS | G94: ABÓBORAS E ABOBORINHAS | H94: 2 | I94: 0.3
G95: AGRIÃO | H95: 0 | I95: 0
G96: ALFACE | H96: 6 | I96: 0.56
G97: ALHO | H97: 0 | I97: 0
G98: ALHO FRANCÊS | H98: 0 | I98: 0
G99: BATATA | H99: 332 | I99: 29.5
G100: BATATA DOCE | H100: 126 | I100: 7.79
G101: BERINGELA | H101: 0 | I101: 0
G102: BETERRABA | H102: 0 | I102: 0
G103: CEBOLA | H103: 17 | I103: 0.49
G104: CENOURA | H104: 25 | I104: 2.04
G105: CHUCHU | H105: 0 | I105: 0
G106: COURGETTE | H106: 1 | I106: 0.04
G107: COUVE | H107: 2 | I107: 0.28
G108: MELANCIA | H108: 0 | I108: 0
G109: MELÃO | H109: 0 | I109: 0
G110: MELOA | H110: 0 | I110: 0
G111: MORANGO | H111: 6 | I111: 0.56
G112: MOSTARDA | H112: 0 | I112: 0
G113: NABIÇA | H113: 0 | I113: 0
G114: NABO | H114: 2 | I114: 0.32
G115: PEPINO | H115: 10 | I115: 2.63
G116: PIMENTO | H116: 0 | I116: 0
G117: RABANETE | H117: 0 | I117: 0
G118: RÁBANO | H118: 0 | I118: 0
G119: RÚCULA | H119: 0 | I119: 0
G120: RUTABAGA | H120: 0 | I120: 0
G121: TOMATE | H121: 16 | I121: 3.98
G122: OUTRAS HORTÍCOLAS | H122: 7382 | I122: 1061.43
G123: SUB-TOTAL DE HORTICOLAS | H123: 7485 | I123: 1109.92
A124: SUPERFÍCIE AGRÍCOLA | C124: CULTURAS TEMPORÁRIAS | E124: LEGUMINOSAS | G124: ANAFA | H124: 0 | I124: 0
G125: CONSOCIAÇÃO DE FIXADOREAS DE AZOTO | H125: 0 | I125: 0
G126: ERVILHA | H126: 2 | I126: 0.02
G127: ERVILHACA | H127: 0 | I127: 0
G128: FAVA | H128: 6 | I128: 0.13
G129: FEIJÃO | H129: 6 | I129: 0.15
G130: GRÃO DE BICO | H130: 0 | I130: 0
G131: LUZERNA | H131: 0 | I131: 0
G132: TREMOCILHA | H132: 0 | I132: 0
G133: TREMOÇO | H133: 5 | I133: 0.16
G134: TREVO | H134: 0 | I134: 0
G135: OUTRAS LEGUMINOSAS SECAS | H135: 0 | I135: 0
G136: SUB-TOTAL DE LEGUMINOSAS | H136: 17 | I136: 0.46
E137: OLEAGINOSAS | G137: AMENDOIM | H137: 0 | I137: 0
G138: COLZA | H138: 0 | I138: 0
G139: GIRASSOL | H139: 0 | I139: 0
G140: LINHO | H140: 0 | I140: 0
G141: SOJA | H141: 0 | I141: 0
G142: OUTRAS OLEAGINOSAS | H142: 0 | I142: 0
G143: SUB-TOTAL DE OLEAGINOSAS | H143: 0 | I143: 0
E144: POUSIOS | G144: POUSIO | H144: 18 | I144: 2.35
G145: SUB-TOTAL DE POUSIOS | H145: 18 | I145: 2.35
E146: OUTRAS CULTURAS TEMPORÁRIAS | G146: ALGODÃO | H146: 0 | I146: 0
G147: CÂNHAMO | H147: 0 | I147: 0
G148: INHAME | H148: 4 | I148: 0.06
G149: PLANTAS AROM., MEDICINAIS E CONDIMENTARES | H149: 6 | I149: 0.94
G150: TABACO | H150: 0 | I150: 0
G151: SUB-TOTAL DE OUTRAS CULTURAS TEMPORÁRIAS | H151: 10 | I151: 1
E152: SUB-TOTAL DE CULTURAS TEMPORÁRIAS | H152: 7571 | I152: 1272.82
C153: SUB-TOTAL DE SUPERFICIE AGRÍCOLA | H153: 11327 | I153: 3435.37
A154: SUPERFÍCIE FLORESTAL | C154: SUPERFÍCIES FLORESTAIS | E154: POVOAMENTO FLORESTAL | G154: ACEIRO FLORESTAL | H154: 0 | I154: 0
G155: GALERIA RIPÍCOLA FLORESTAL | H155: 0 | I155: 0
G156: MEDRONHEIRO | H156: 0 | I156: 0
G157: POVOAMENTO AZINHEIRAS | H157: 0 | I157: 0
G158: POVOAMENTO CARVALHO NEGRAL | H158: 0 | I158: 0
G159: POVOAMENTO CASTANHEIRO | H159: 0 | I159: 0
G160: POVOAMENTO DE EUCALIPTO | H160: 0 | I160: 0
G161: POVOAMENTO DE PINHEIRO MANSO | H161: 0 | I161: 0
G162: POVOAMENTO DE SOBREIROS | H162: 0 | I162: 0
G163: POVOAMENTO F MISTO | H163: 13 | I163: 425.86
G164: POVOAMENTO MISTO QUERCUS(SOB.AZENH.CARVAL/NEGRAL) | H164: 0 | I164: 0
G165: SALIX | H165: 0 | I165: 0
G166: POVOAMENTO OUTRAS FOLHOSAS | H166: 0 | I166: 0
G167: POVOAMENTO OUTRAS RESINOSAS | H167: 0 | I167: 0
G168: SUB-TOTAL DE POVOAMENTO FLORESTAL | H168: 13 | I168: 425.86
E169: SUPERFÍCIE NÃO ARBORIZADA | G169: MACIÇOS OU FORMAÇÕES RELIQUIAIS OU NOTÁVEIS | H169: 0 | I169: 0
G170: SUPERFÍCIE ARBUSTIVA NÃO PASTOREÁVEL | H170: 104 | I170: 11.03
G171: OUTRAS SUPERFÍCIES FLORESTAIS | H171: 2 | I171: 0.82
G172: SUB-TOTAL DE SUPERFÍCIE NÃO ARBORIZADA | H172: 105 | I172: 11.85
E173: SUB-TOTAL DE SUPERFÍCIES FLORESTAIS | H173: 118 | I173: 437.71
C174: SUB-TOTAL DE SUPERFÍCIE FLORESTAL | H174: 118 | I174: 437.71
A175: ELEMENTOS LINEARES E DA PAISAGEM | C175: ELEMENTOS LINEARES E DA PAISAGEM | E175: ELEMENTOS LINEARES E DA PAISAGEM | G175: CABECEIRAS CULT. PERMANENTES -ÁREA ÚTIL | H175: 0 | I175: 0
G176: ELEMENTO LINEAR EM ORIZICULTURA-ÁREA ÚTIL | H176: 0 | I176: 0
G177: ELEMENTO LINEAR SEBE OU CORTA-VENTO-ÁREA ÚTIL | H177: 0 | I177: 0
G178: EP-BOSQUETE E FORMAÇÕES RELIQUIAIS-ÁREA ÚTIL | H178: 0 | I178: 0
G179: GALERIA RIPÍCOLA - ÁREA ÚTIL | H179: 0 | I179: 0
G180: LINHAS DE ÁGUA - ÁREA ÚTIL | H180: 0 | I180: 0
G181: SUB-TOTAL DE ELEMENTOS LINEARES E DA PAISAGEM | H181: 0 | I181: 0
E182: SUB-TOTAL DE ELEMENTOS LINEARES E DA PAISAGEM | H182: 0 | I182: 0
C183: SUB-TOTAL DE ELEMENTOS LINEARES E DA PAISAGEM | H183: 0 | I183: 0
A184: ZONAS DE PROTEÇÃO | C184: ZONAS DE PROTEÇÃO | E184: ZONAS DE PROTEÇÃO | G184: BOSQUETES | H184: 1 | I184: 0.2
G185: GALERIA RIPÍCOLA | H185: 0 | I185: 0
G186: SUB-TOTAL DE ZONAS DE PROTEÇÃO | H186: 1 | I186: 0.2
E187: SUB-TOTAL DE ZONAS DE PROTEÇÃO | H187: 1 | I187: 0.2
C188: SUB-TOTAL DE ZONAS DE PROTEÇÃO | H188: 1 | I188: 0.2
A189: ÁREA TOTAL | I189: =+I188+I183+I174+I153 -> 3873.28

Sheet QUADRO03 - CONTINENTE
A1: QUADRO 3 - ÁREAS (HA) DOS CEREAIS POR VARIEDADE / FINALIDADE - PU2017
A3: CONTINENTE
A4: CULTURA | B4: VARIEDADE / FINALIDADE | C4: 2017
C5: ÁREA
A6: ARROZ | B6: INDICA | C6: 7821.38
B7: JAPONICA | C7: 20795.54
B8: SUB-TOTAL DE ARROZ | C8: =SUM(C6:C7) -> 28616.92
A9: AVEIA | B9: SUB-TOTAL DE AVEIA | C9: 60789.69
A10: CENTEIO | B10: SUB-TOTAL DE CENTEIO | C10: 15179.97
A11: CEVADA | B11: DISTICA | C11: 19044.33
B12: HEXASTICA | C12: 3948.65
B13: SUB-TOTAL DE CEVADA | C13: =SUM(C11:C12) -> 22992.98
A14: MILHO | B14: GRÃO | C14: 68552.01
B15: SILAGEM | C15: 35399.32
B16: SUB-TOTAL DE MILHO | C16: =SUM(C14:C15) -> 103951.33
A17: SORGO | B17: SUB-TOTAL DE SORGO | C17: 7622.74
A18: TRIGO | B18: DURO | C18: 4786.99
B19: MOLE | C19: 22408.03
B20: SUB-TOTAL DE TRIGO | C20: =SUM(C18:C19) -> 27195.02
A21: TRITICALE | B21: SUB-TOTAL DE TRITICALE | C21: 16581.71
A22: OUTROS CEREAIS | B22: SUB-TOTAL DE OUTROS CEREAIS | C22: 1194.43
A23: TOTAL DE CEREAIS | C23: =+C8+C9+C10+C13+C16+C17+C20+C21+C22 -> 284124.79

Sheet QUADRO03 - MADEIRA
A1: QUADRO 3 - ÁREAS (HA) DOS CEREAIS POR VARIEDADE / FINALIDADE - PU2017
A3: MADEIRA
A4: CULTURA | B4: VARIEDADE / FINALIDADE | C4: 2017
C5: ÁREA
A6: ARROZ | B6: INDICA | C6: 0
B7: JAPONICA | C7: 0
B8: SUB-TOTAL DE ARROZ | C8: =SUM(C6:C7) -> 0
A9: AVEIA | B9: SUB-TOTAL DE AVEIA | C9: 8.95
A10: CENTEIO | B10: SUB-TOTAL DE CENTEIO | C10: 0.11
A11: CEVADA | B11: DISTICA | C11: 2.54
B12: HEXASTICA | C12: 2.94
B13: SUB-TOTAL DE CEVADA | C13: =SUM(C11:C12) -> 5.48
A14: MILHO | B14: GRÃO | C14: 2
B15: SILAGEM | C15: 0.06
B16: SUB-TOTAL DE MILHO | C16: =SUM(C14:C15) -> 2.06
A17: SORGO | B17: SUB-TOTAL DE SORGO | C17: 0
A18: TRIGO | B18: DURO | C18: 5.11
B19: MOLE | C19: 1.44
B20: SUB-TOTAL DE TRIGO | C20: =SUM(C18:C19) -> 6.55
A21: TRITICALE | B21: SUB-TOTAL DE TRITICALE | C21: 0
A22: OUTROS CEREAIS | B22: SUB-TOTAL DE OUTROS CEREAIS | C22: 0
A23: TOTAL DE CEREAIS | C23: =+C8+C9+C10+C13+C16+C17+C20+C21+C22 -> 23.15

Sheet QUADRO04 - CONTINENTE
A1: QUADRO 4 - ÁREAS (HA) DOS HORTÍCOLAS POR FINALIDADE - PU2017
A2: CONTINENTE
A3: CULTURA | B3: FINALIDADE | C3: 2017
C4: CANDIDATURAS | D4: ÁREA
A5: ABÓBORAS E ABOBORINHAS | C5: 4595 | D5: 5051.38
A6: AGRIÃO | C6: 7 | D6: 1.03
A7: ALFACE | C7: 177 | D7: 74.27
A8: ALHO | C8: 87 | D8: 645.63
A9: ALHO FRANCÊS | C9: 37 | D9: 108.52
A10: BATATA | C10: 30680 | D10: 7690.42
A11: BATATA DOCE | C11: 193 | D11: 442.37
A12: BERINGELA | B12: CONSUMO EM FRESCO | C12: 29 | D12: 7.78
B13: INDÚSTRIA | C13: 21 | D13: 66.49
B14: SUB-TOTAL DE BERINGELA | D14: =SUM(D12:D13) -> 74.27
A15: BETERRABA | C15: 216 | D15: 92.02
A16: CEBOLA | C16: 539 | D16: 604.59
A17: CENOURA | C17: 87 | D17: 1181.5
A18: CHUCHU | C18: 5 | D18: 8.48
A19: COURGETTE | C19: 100 | D19: 173.65
A20: COUVE | B20: CONSUMO EM FRESCO | C20: 471 | D20: 878.86
B21: INDÚSTRIA | C21: 66 | D21: 614.72
C22: 45 | D22: 52.28
B23: SUB-TOTAL DE COUVE | D23: =SUM(D20:D22) -> 1545.86
A24: MELANCIA | C24: 274 | D24: 508.41
A25: MELÃO | C25: 469 | D25: 1825.42
A26: MELOA | C26: 60 | D26: 128.58
A27: MORANGO | C27: 224 | D27: 254.41
A28: MOSTARDA | C28: 6 | D28: 1.56
A29: NABIÇA | C29: 136 | D29: 45.95
A30: NABO | C30: 597 | D30: 712.42
A31: PEPINO | C31: 29 | D31: 6.62
A32: PIMENTO | B32: CONSUMO EM FRESCO | C32: 118 | D32: 110.41
B33: INDÚSTRIA | C33: 166 | D33: 913.52
B34: SUB-TOTAL DE PIMENTO | D34: =SUM(D32:D33) -> 1023.93
A35: RABANETE | C35: 3 | D35: 1.59
A36: RÁBANO | C36: 1 | D36: 0.03
A37: RÚCULA | C37: 0 | D37: 0
A38: RUTABAGA | C38: 1 | D38: 0.02
A39: TOMATE | B39: CONSUMO EM FRESCO | C39: 164 | D39: 125.4
B40: INDÚSTRIA | C40: 475 | D40: 19549.52
B41: SUB-TOTAL DE TOMATE | D41: =SUM(D39:D40) -> 19674.92
A42: OUTRAS HORTÍCOLAS | B42: CONSUMO EM FRESCO | C42: 64844 | D42: 14617.29
B43: CORTE P/ CONSUMO NA EXPLORAÇÃO | C43: 0 | D43: 0
B44: GRÃO | C44: 0 | D44: 0
B45: INDÚSTRIA | C45: 167 | D45: 421.79
B46: SUB-TOTAL DE OUTRAS HORTÍCOLAS | D46: =SUM(D42:D45) -> 15039.08
A47: TOTAL DE HORTICOLAS | D47: =+D41+D36+D35+D34+D31+D46+D30+D29+D28+D27+D26+D25+D24+D23+D19+D18+D17+D16+D15+D14+D11+D8+D7+D6+D5+D9+D10 -> 56916.91

Sheet QUADRO04 - MADEIRA
A1: QUADRO 4 - ÁREAS (HA) DOS HORTÍCOLAS POR FINALIDADE - PU2017
A2: MADEIRA
A3: CULTURA | B3: FINALIDADE | C3: 2017
C4: CANDIDATURAS | D4: ÁREA
A5: ABÓBORAS E ABOBORINHAS | C5: 2 | D5: 0.3
A6: AGRIÃO | C6: 0 | D6: 0
A7: ALFACE | C7: 6 | D7: 0.56
A8: ALHO | C8: 0 | D8: 0
A9: ALHO FRANCÊS | C9: 0 | D9: 0
A10: BATATA | C10: 332 | D10: 29.5
A11: BATATA DOCE | C11: 126 | D11: 7.79
A12: BERINGELA | B12: CONSUMO EM FRESCO | C12: 0 | D12: 0
B13: INDÚSTRIA | C13: 0 | D13: 0
B14: SUB-TOTAL DE BERINGELA | D14: =SUM(D12:D13) -> 0
A15: BETERRABA | C15: 0 | D15: 0
A16: CEBOLA | C16: 17 | D16: 0.49
A17: CENOURA | C17: 25 | D17: 2.04
A18: CHUCHU | C18: 0 | D18: 0
A19: COURGETTE | C19: 1 | D19: 0.04
A20: COUVE | B20: CONSUMO EM FRESCO | C20: 2 | D20: 0.28
B21: INDÚSTRIA | C21: 0 | D21: 0
C22: 0 | D22: 0
B23: SUB-TOTAL DE COUVE | D23: =SUM(D20:D22) -> 0.28
A24: MELANCIA | C24: 0 | D24: 0
A25: MELÃO | C25: 0 | D25: 0
A26: MELOA | C26: 0 | D26: 0
A27: MORANGO | C27: 6 | D27: 0.56
A28: MOSTARDA | C28: 0 | D28: 0
A29: NABIÇA | C29: 0 | D29: 0
A30: NABO | C30: 2 | D30: 0.32
A31: PEPINO | C31: 10 | D31: 2.63
A32: PIMENTO | B32: CONSUMO EM FRESCO | C32: 0 | D32: 0
B33: INDÚSTRIA | C33: 0 | D33: 0
B34: SUB-TOTAL DE PIMENTO | D34: =SUM(D32:D33) -> 0
A35: RABANETE | C35: 0 | D35: 0
A36: RÁBANO | C36: 0 | D36: 0
A37: RÚCULA | C37: 0 | D37: 0
A38: RUTABAGA | C38: 0 | D38: 0
A39: TOMATE | B39: CONSUMO EM FRESCO | C39: 16 | D39: 3.98
B40: INDÚSTRIA | C40: 0 | D40: 0
B41: SUB-TOTAL DE TOMATE | D41: =SUM(D39:D40) -> 3.98
A42: OUTRAS HORTÍCOLAS | B42: CONSUMO EM FRESCO | C42: 7376 | D42: 1059.42
B43: CORTE P/ CONSUMO NA EXPLORAÇÃO | C43: 0 | D43: 0
B44: GRÃO | C44: 0 | D44: 0
B45: INDÚSTRIA | C45: 26 | D45: 2.01
B46: SUB-TOTAL DE OUTRAS HORTÍCOLAS | D46: =SUM(D42:D45) -> 1061.43
A47: TOTAL DE HORTICOLAS | D47: =+D41+D36+D35+D34+D31+D46+D30+D29+D28+D27+D26+D25+D24+D23+D19+D18+D17+D16+D15+D14+D11+D8+D7+D6+D5+D9+D10 -> 1109.92

Sheet QUADRO05 - CONTINENTE
A1: QUADRO 5 - ÁREAS (HA) DE OLIVAL E VINHA POR VARIEDADE / FINALIDADE - PU2017
A2: CONTINENTE
A3: CULTURA | B3: LOCALIZAÇÃO | C3: FINALIDADE | D3: 2017
D4: CANDIDATURAS | E4: AREA
A5: OLIVAL | C5: AZEITE | D5: 80903 | E5: 273450.27
C6: AZEITONA DE MESA | D6: 1603 | E6: 4235.99
B7: SUB-TOTAL DE OLIVAL | E7: =SUM(E5:E6) -> 277686.26
A8: VINHA | B8: FORA DE REGIÃO DETERMINADA | C8: PASSA DE UVA | D8: 83 | E8: 16.5
C9: UVA DE MESA | D9: 1010 | E9: 1049.76
C10: VINHO | D10: 29988 | E10: 18728.91
B11: SUB-TOTAL DE VINHA FORA DE REGIÃO DETERMINADA | E11: =SUM(E8:E10) -> 19795.17
B12: REGIÃO DETERMINADA | C12: PASSA DE UVA | D12: 27 | E12: 14.24
C13: UVA DE MESA | D13: 623 | E13: 405.89
C14: VINHO | D14: 42797 | E14: 100384.86
B15: SUB-TOTAL DE VINHA EM REGIÃO DETERMINADA | E15: =SUM(E12:E14) -> 100804.99
B16: SUB-TOTAL DE VINHA | E16: =+E15+E11 -> 120600.16

Sheet QUADRO05 - MADEIRA
A1: QUADRO 5 - ÁREAS (HA) DE OLIVAL E VINHA POR VARIEDADE / FINALIDADE - PU2017
A2: MADEIRA
A3: CULTURA | B3: LOCALIZAÇÃO | C3: FINALIDADE | D3: 2017
D4: CANDIDATURAS | E4: AREA
A5: OLIVAL | C5: AZEITE | D5: 0 | E5: 0
C6: AZEITONA DE MESA | D6: 1 | E6: 0.02
B7: SUB-TOTAL DE OLIVAL | E7: =SUM(E5:E6) -> 0.02
A8: VINHA | B8: FORA DE REGIÃO DETERMINADA | C8: PASSA DE UVA | D8: 3 | E8: 0.39
C9: UVA DE MESA | D9: 121 | E9: 5.57
C10: VINHO | D10: 2156 | E10: 232.98
B11: SUB-TOTAL DE VINHA FORA DE REGIÃO DETERMINADA | E11: =SUM(E8:E10) -> 238.94
B12: REGIÃO DETERMINADA | C12: PASSA DE UVA | D12: 1 | E12: 0.03
C13: UVA DE MESA | D13: 18 | E13: 1.98
C14: VINHO | D14: 1206 | E14: 340.32
B15: SUB-TOTAL DE VINHA EM REGIÃO DETERMINADA | E15: =SUM(E12:E14) -> 342.33
B16: SUB-TOTAL DE VINHA | E16: =+E15+E11 -> 581.27

Sheet QUADRO06
A1: QUADRO 6 - N.º DE CANDIDATURAS E ÁREAS (HA) DECLARADAS, POR CULTURA RPB - PU2017
A3: CULTURA | B3: 2017
B4: CANDIDATURAS | C4: ÁREA
A5: ABACATE | B5: 80 | C5: 381.95
A6: ABÓBORAS E ABOBORINHAS | B6: 2892 | C6: 4434.36
A7: AGRIÃO | B7: 5 | C7: 0.96
A8: ALFACE | B8: 93 | C8: 54.16
A9: ALFARROBA | B9: 836 | C9: 3883.8
A10: ALGODÃO | B10: 0 | C10: 0
A11: ALHO | B11: 63 | C11: 640.6
A12: ALHO FRANCÊS | B12: 27 | C12: 94.48
A13: AMEIXA | B13: 448 | C13: 755.52
A14: AMENDOA | B14: 8104 | C14: 22061.44
A15: AMENDOIM | B15: 31 | C15: 725.17
A16: AMORA | B16: 52 | C16: 49.36
A17: ANAFA | B17: 1 | C17: 0.15
A18: ANONA | B18: 2 | C18: 2.17
A19: ARROZ | B19: 1121 | C19: 28378.8
A20: AVEIA | B20: 11844 | C20: 55793.46
A21: AVELÃ | B21: 204 | C21: 146.88
A22: AZEVEM | B22: 3034 | C22: 16362.69
A23: BANANA | B23: 3 | C23: 2.21
A24: BATATA | B24: 14491 | C24: 5477.97
A25: BATATA DOCE | B25: 132 | C25: 417.49
A26: BERINGELA | B26: 34 | C26: 71.67
A27: BETERRABA | B27: 123 | C27: 77.28
A28: CABECEIRAS CULT. PERMANENTES -ÁREA ÚTIL | B28: 11031 | C28: 3849.87
A29: CANA DE AÇÚCAR | B29: 3 | C29: 2.24
A30: CÂNHAMO | B30: 1 | C30: 0.75
A31: CASTANHA | B31: 10804 | C31: 23351.23
A32: CEBOLA | B32: 328 | C32: 545.9
A33: CENOURA | B33: 75 | C33: 913.25
A34: CENTEIO | B34: 7745 | C34: 12266.3
A35: CEREJA | B35: 2140 | C35: 3114.34
A36: CEVADA | B36: 1762 | C36: 22526.61
A37: CHUCHU | B37: 1 | C37: 3.9
A38: COLZA | B38: 178 | C38: 4297.61
A39: CONSOCIAÇÃO DE FIXADORAS DE AZOTO | B39: 105 | C39: 644.32
A40: CONSOCIAÇÕES ANUAIS E OUTRAS CULT. FORRAG. ANUAIS | B40: 13513 | C40: 95746.42
A41: COURGETTE | B41: 80 | C41: 162.21
A42: COUVE | B42: 371 | C42: 1402.53
A43: DAMASCO | B43: 98 | C43: 360.71
A44: DIOSPIRO | B44: 92 | C44: 112.58
A45: ELEMENTO LINEAR EM ORIZICULTURA-ÁREA ÚTIL | B45: 748 | C45: 1023.12
A46: ELEMENTO LINEAR SEBE OU CORTA-VENTO-ÁREA ÚTIL | B46: 217 | C46: 39.59
A47: EP-BOSQUETE E FORMAÇÕES RELIQUIAIS-ÁREA ÚTIL | B47: 9 | C47: 1.87
A48: ERVILHA | B48: 429 | C48: 4210.79
A49: ERVILHACA | B49: 55 | C49: 438.47
A50: FAVA | B50: 444 | C50: 1192.26
A51: FEIJÃO | B51: 2925 | C51: 2519.57
A52: FESTUCA | B52: 8 | C52: 14.29
A53: FIGO | B53: 897 | C53: 937.59
A54: FIGO DA INDIA | B54: 66 | C54: 269.21
A55: FLORES E PLANTAS ORNAMENTAIS | B55: 196 | C55: 343.72
A56: FRAMBOESA | B56: 170 | C56: 246.25
A57: GALERIA RIPÍCOLA - ÁREA ÚTIL | B57: 910 | C57: 513.64
A58: GINJA | B58: 25 | C58: 41.64
A59: GIRASSOL | B59: 749 | C59: 12654.78
A60: GRÃO DE BICO | B60: 529 | C60: 1531.07
A61: GROSELHA | B61: 57 | C61: 49.34
A62: INHAME | B62: 3 | C62: 1.17
A63: KIWI | B63: 402 | C63: 1451.2
A64: LARANJA | B64: 4221 | C64: 7271.55
A65: LIMÃO | B65: 192 | C65: 237.16
A66: LINHAS DE ÁGUA - ÁREA ÚTIL | B66: 1222 | C66: 651.63
A67: LINHO | B67: 2 | C67: 0.45
A68: LUPULO | B68: 4 | C68: 10.8
A69: LUZERNA | B69: 367 | C69: 1557.1
A70: MAÇÃ | B70: 3748 | C70: 6805.4
A71: MARACUJÁ | B71: 13 | C71: 13.64
A72: MARALFALFA | B72: 3 | C72: 4.78
A73: MARMELO | B73: 495 | C73: 981.14
A74: MEDRONHEIRO | B74: 8 | C74: 176.67
A75: MEDRONHO | B75: 187 | C75: 1022.81
A76: MELANCIA | B76: 217 | C76: 497.95
A77: MELÃO | B77: 380 | C77: 1804.11
A78: MELOA | B78: 42 | C78: 83.51
A79: MILHO | B79: 30376 | C79: 89668.12
A80: MIRTILO | B80: 565 | C80: 880.79
A81: MISTO CULTURAS PERMANENTES | B81: 14821 | C81: 10524.63
A82: MORANGO | B82: 135 | C82: 156.8
A83: MOSTARDA | B83: 3 | C83: 0.71
A84: NABIÇA | B84: 88 | C84: 35.47
A85: NABO | B85: 443 | C85: 653.68
A86: NÊSPERA | B86: 24 | C86: 6.48
A87: NOZ | B87: 1520 | C87: 2021.88
A88: OLIVAL | B88: 40657 | C88: 234747.87
A89: OUTRAS CULTURAS PERMANENTES | B89: 388 | C89: 293.93
A90: OUTRAS FRUTOS FRESCOS | B90: 7543 | C90: 1562.36
A91: OUTRAS HORTÍCOLAS | B91: 30771 | C91: 8535.41
A92: OUTRAS LEGUMINOSAS SECAS | B92: 214 | C92: 428.41
A93: OUTRAS OLEAGINOSAS | B93: 43 | C93: 408.71
A94: OUTROS CEREAIS | B94: 533 | C94: 572.65
A95: OUTROS CITRINOS | B95: 519 | C95: 410.77
A96: OUTROS FRUTOS SECOS | B96: 855 | C96: 803.81
A97: OUTROS FRUTOS SUB-TROPICAIS | B97: 103 | C97: 22.95
A98: OUTROS PEQUENOS FRUTOS | B98: 1174 | C98: 310.88
A99: PANASCO | B99: 17 | C99: 19.16
A100: PASTAGENS EM BALDIO | B100: 7046 | C100: 105547.79
A101: PASTAGENS PERMANENTES | B101: 39938 | C101: 961383.41
A102: PEPINO | B102: 12 | C102: 1.76
A103: PERA | B103: 1078 | C103: 5070.26
A104: PÊSSEGO | B104: 806 | C104: 2271.62
A105: PIMENTO | B105: 224 | C105: 970.04
A106: PINHÃO | B106: 900 | C106: 28000.58
A107: PISTACIOS | B107: 27 | C107: 69.4
A108: PLANTAS AROM., MEDICINAIS E CONDIMENTARES | B108: 262 | C108: 1136.99
A109: POUSIO | B109: 24722 | C109: 87686.7
A110: POVOAMENTO AZINHEIRAS | B110: 93 | C110: 2192.94
A111: POVOAMENTO CARVALHO NEGRAL | B111: 40 | C111: 209.37
A112: POVOAMENTO DE PINHEIRO MANSO | B112: 292 | C112: 6618.37
A113: POVOAMENTO DE SOBREIROS | B113: 900 | C113: 22975.99
A114: POVOAMENTO OUTRAS FOLHOSAS | B114: 318 | C114: 1433.32
A115: POVOAMENTO OUTRAS RESINOSAS | B115: 248 | C115: 1510.32
A116: PRADOS TEMPORÁRIOS | B116: 41050 | C116: 588160.63
A117: RABANETE | B117: 2 | C117: 1.27
A118: ROMÃ | B118: 61 | C118: 239.28
A119: SABUGUEIRO (BAGA) | B119: 67 | C119: 60.91
A120: SERRADELA | B120: 8 | C120: 94.5
A121: SOBREIRO PARA PRODUÇÃO DE CORTIÇA | B121: 5770 | C121: 226119.87
A122: SOJA | B122: 8 | C122: 89.33
A123: SORGO | B123: 2208 | C123: 7270.59
A124: TABACO | B124: 3 | C124: 1.57
A125: TANGERA | B125: 5 | C125: 2.93
A126: TANGERINA | B126: 226 | C126: 833.52
A127: TOMATE | B127: 517 | C127: 18771.41
A128: TREMOCILHA | B128: 970 | C128: 9625.87
A129: TREMOÇO | B129: 1014 | C129: 1315.99
A130: TREVO | B130: 175 | C130: 1852.18
A131: TRIGO | B131: 4116 | C131: 26119.26
A132: TRITICALE | B132: 1173 | C132: 16283.06
A133: VINHA | B133: 33790 | C133: 82656.44
A134: VIVEIROS | B134: 83 | C134: 88.16
A135: TOTAL DE CULTURAS RPB | C135: =SUM(C5:C134) -> 2916442.71

Sheet QUADRO07
A1: QUADRO 7 - N.º DE CANDIDATURAS E ÁREAS (HA) DECLARADAS, POR CULTURA RPA - PU2017
A3: CULTURA | B3: 2017
B4: CANDIDATURAS | C4: ÁREA
A5: ABACATE | B5: 12 | C5: 14.92
A6: ABÓBORAS E ABOBORINHAS | B6: 1369 | C6: 343.22
A7: AGRIÃO | B7: 1 | C7: 0.03
A8: ALFACE | B8: 66 | C8: 6.76
A9: ALFARROBA | B9: 426 | C9: 630.22
A10: ALHO | B10: 15 | C10: 3.52
A11: ALHO FRANCÊS | B11: 4 | C11: 0.5
A12: AMEIXA | B12: 178 | C12: 58.22
A13: AMENDOA | B13: 3391 | C13: 2246.67
A14: AMENDOIM | B14: 1 | C14: 0.05
A15: AMORA | B15: 38 | C15: 30.72
A16: ARROZ | B16: 50 | C16: 21.91
A17: AVEIA | B17: 4749 | C17: 3126.99
A18: AVELÃ | B18: 179 | C18: 59.53
A19: AZEVEM | B19: 934 | C19: 427.4
A20: BATATA | B20: 14164 | C20: 1701.99
A21: BATATA DOCE | B21: 45 | C21: 10.52
A22: BERINGELA | B22: 14 | C22: 1.56
A23: BETERRABA | B23: 74 | C23: 7.89
A24: CABECEIRAS CULT. PERMANENTES -ÁREA ÚTIL | B24: 6978 | C24: 543.05
A25: CASTANHA | B25: 6719 | C25: 9390.71
A26: CEBOLA | B26: 187 | C26: 26.02
A27: CENOURA | B27: 6 | C27: 16.77
A28: CENTEIO | B28: 2915 | C28: 1831.76
A29: CEREJA | B29: 1532 | C29: 883.17
A30: CEVADA | B30: 200 | C30: 250.1
A31: CHUCHU | B31: 1 | C31: 0.45
A32: CONSOCIAÇÃO DE FIXADORAS DE AZOTO | B32: 32 | C32: 8.51
A33: CONSOCIAÇÕES ANUAIS E OUTRAS CULT. FORRAG. ANUAIS | B33: 6591 | C33: 3859.34
A34: COURGETTE | B34: 13 | C34: 2.42
A35: COUVE | B35: 151 | C35: 32.36
A36: DAMASCO | B36: 12 | C36: 2.63
A37: DIOSPIRO | B37: 26 | C37: 10.7
A38: ELEMENTO LINEAR EM ORIZICULTURA-ÁREA ÚTIL | B38: 12 | C38: 0.44
A39: ELEMENTO LINEAR SEBE OU CORTA-VENTO-ÁREA ÚTIL | B39: 48 | C39: 4.58
A40: EP-BOSQUETE E FORMAÇÕES RELIQUIAIS-ÁREA ÚTIL | B40: 2 | C40: 0.4
A41: ERVILHA | B41: 71 | C41: 14.91
A42: ERVILHACA | B42: 7 | C42: 3.45
A43: FAVA | B43: 377 | C43: 60.17
A44: FEIJÃO | B44: 3195 | C44: 412.06
A45: FIGO | B45: 257 | C45: 62.88
A46: FIGO DA INDIA | B46: 4 | C46: 1.38
A47: FLORES E PLANTAS ORNAMENTAIS | B47: 121 | C47: 49.74
A48: FRAMBOESA | B48: 102 | C48: 75.08
A49: GALERIA RIPÍCOLA - ÁREA ÚTIL | B49: 191 | C49: 11.58
A50: GINJA | B50: 7 | C50: 1.3
A51: GIRASSOL | B51: 79 | C51: 66.23
A52: GRÃO DE BICO | B52: 371 | C52: 41.55
A53: GROSELHA | B53: 53 | C53: 31.93
A54: INHAME | B54: 1 | C54: 0.02
A55: KIWI | B55: 256 | C55: 452.07
A56: LARANJA | B56: 1847 | C56: 475.07
A57: LIMÃO | B57: 77 | C57: 60.4
A58: LINHAS DE ÁGUA - ÁREA ÚTIL | B58: 115 | C58: 6.25
A59: LINHO | B59: 1 | C59: 0.14
A60: LUZERNA | B60: 32 | C60: 12.19
A61: MAÇÃ | B61: 2259 | C61: 1535.29
A62: MARACUJÁ | B62: 5 | C62: 4.69
A63: MARMELO | B63: 304 | C63: 116.79
A64: MEDRONHEIRO | B64: 2 | C64: 5.9
A65: MEDRONHO | B65: 90 | C65: 235.73
A66: MELANCIA | B66: 43 | C66: 5.78
A67: MELÃO | B67: 66 | C67: 13.2
A68: MELOA | B68: 16 | C68: 1.85
A69: MILHO | B69: 22876 | C69: 11815.77
A70: MIRTILO | B70: 444 | C70: 501.21
A71: MISTO CULTURAS PERMANENTES | B71: 13957 | C71: 5063.28
A72: MORANGO | B72: 61 | C72: 27.93
A73: MOSTARDA | B73: 3 | C73: 0.85
A74: NABIÇA | B74: 31 | C74: 7.3
A75: NABO | B75: 115 | C75: 28.31
A76: NÊSPERA | B76: 12 | C76: 0.74
A77: NOZ | B77: 728 | C77: 249.21
A78: OLIVAL | B78: 32655 | C78: 30634.51
A79: OUTRAS CULTURAS PERMANENTES | B79: 184 | C79: 29.92
A80: OUTRAS FRUTOS FRESCOS | B80: 5926 | C80: 856.62
A81: OUTRAS HORTÍCOLAS | B81: 28105 | C81: 4726.41
A82: OUTRAS LEGUMINOSAS SECAS | B82: 156 | C82: 39.25
A83: OUTRAS OLEAGINOSAS | B83: 13 | C83: 5.06
A84: OUTROS CEREAIS | B84: 804 | C84: 492.84
A85: OUTROS CITRINOS | B85: 296 | C85: 55.61
A86: OUTROS FRUTOS SECOS | B86: 355 | C86: 156.71
A87: OUTROS FRUTOS SUB-TROPICAIS | B87: 70 | C87: 21.56
A88: OUTROS PEQUENOS FRUTOS | B88: 833 | C88: 112.28
A89: PANASCO | B89: 14 | C89: 1.67
A90: PASTAGENS EM BALDIO | B90: 1994 | C90: 9289.89
A91: PASTAGENS PERMANENTES | B91: 14632 | C91: 10444.76
A92: PEPINO | B92: 13 | C92: 2.38
A93: PERA | B93: 393 | C93: 559.5
A94: PÊSSEGO | B94: 367 | C94: 111.5
A95: PIMENTO | B95: 32 | C95: 10.11
A96: PINHÃO | B96: 181 | C96: 239.05
A97: PISTACIOS | B97: 4 | C97: 2.61
A98: PLANTAS AROM., MEDICINAIS E CONDIMENTARES | B98: 79 | C98: 112.37
A99: POUSIO | B99: 14156 | C99: 8015.67
A100: POVOAMENTO AZINHEIRAS | B100: 23 | C100: 181.85
A101: POVOAMENTO CARVALHO NEGRAL | B101: 25 | C101: 71.71
A102: POVOAMENTO DE PINHEIRO MANSO | B102: 95 | C102: 516.85
A103: POVOAMENTO DE SOBREIROS | B103: 297 | C103: 2183.66
A104: POVOAMENTO OUTRAS FOLHOSAS | B104: 335 | C104: 931.1
A105: POVOAMENTO OUTRAS RESINOSAS | B105: 201 | C105: 771.78
A106: PRADOS TEMPORÁRIOS | B106: 18851 | C106: 13468.99
A107: RABANETE | B107: 1 | C107: 0.32
A108: RÁBANO | B108: 1 | C108: 0.03
A109: ROMÃ | B109: 6 | C109: 3.99
A110: SABUGUEIRO (BAGA) | B110: 225 | C110: 108.15
A111: SOBREIRO PARA PRODUÇÃO DE CORTIÇA | B111: 946 | C111: 1590.22
A112: SOJA | B112: 2 | C112: 0.27
A113: SORGO | B113: 263 | C113: 155.72
A114: TABACO | B114: 3 | C114: 0.39
A115: TANGERINA | B115: 30 | C115: 12.43
A116: TOMATE | B116: 56 | C116: 18.55
A117: TREMOCILHA | B117: 77 | C117: 71.53
A118: TREMOÇO | B118: 725 | C118: 238.05
A119: TREVO | B119: 17 | C119: 4.17
A120: TRIGO | B120: 1033 | C120: 664.8
A121: TRITICALE | B121: 108 | C121: 105.92
A122: VINHA | B122: 30613 | C122: 23953.61
A123: VIVEIROS | B123: 53 | C123: 24.75
A124: TOTAL DE CULTURAS RPA | C124: =SUM(C5:C123) -> 158007.38

Sheet GRÁFICO05
M1: RPB | N1: 7791 | AA1: GRÁFICO 5 - TRANSFERÊNCIAS - N.º DE COMUNICAÇÕES (MODELO T) - PU2017
M2: MAA | N2: 2942
M3: FTA | N3: 146

Sheet GRÁFICO06
M1: RPB (Direitos) | N1: 160944.19 | AA1: GRÁFICO 6 - TRANSFERÊNCIAS - DIREITOS/ÁREA (HA) (MODELO T) - PU2017
M2: MAA (Área) | N2: 62836.3
M3: FTA (Área) | N3: 3222.52

Sheet GRÁFICO07
AA1: GRÁFICO 7 - TRANSFERÊNCIAS - N.º DE COMUNICAÇÕES POR TIPO (MODELO T - RPB) - PU2017 | AB1: Gráfico 07 - N.º de Comunicações Modelo H por Tipo de Transferência
AA2: GRÁFICO 7 - TRANSFERÊNCIAS - N.º DE COMUNICAÇÕES POR TIPO (MODELO T - MAA) - PU2017
AA3: GRÁFICO 7 - TRANSFERÊNCIAS - N.º DE COMUNICAÇÕES POR TIPO (MODELO T - FTA) - PU2017
AA4: GRÁFICO 7 - TRANSFERÊNCIAS - N.º DE COMUNICAÇÕES POR TIPO (MODELO T) - PU2017
Q30: Alteração de estatuto jurídico ou denominação | R30: 12
Q31: Definitiva | R31: 2111
Q32: Herança | R32: 789
Q33: Temporária | R33: 30
R34: 2942
Q55: Alteração de estatuto jurídico ou denominação | R55: 0
Q56: Definitiva | R56: 0
Q57: Herança | R57: 146
Q58: Temporária | R58: 0
R59: 146

Sheet GRÁFICO08
AA1: GRÁFICO 8 - TRANSFERÊNCIAS - DIREITOS POR TIPO (MODELO T - RPB) - PU2017 | AB1: Gráfico 08 - Área Modelo H por Tipo de Transferência
AA2: GRÁFICO 8 - TRANSFERÊNCIAS - ÁREA POR TIPO (MODELO T - MAA) - PU2017
AA3: GRÁFICO 8 - TRANSFERÊNCIAS - ÁREA POR TIPO (MODELO T - FTA) - PU2017
AA4: GRÁFICO 8 - TRANSFERÊNCIAS - DIREITOS POR TIPO (MODELO T) - PU2017
Q30: Alteração de estatuto jurídico ou denominação | R30: 936.48
Q31: Definitiva | R31: 50056.08
Q32: Herança | R32: 9791.32
Q33: Temporária | R33: 2052.42
R34: 62836.3
Q51: Alteração de estatuto jurídico ou denominação | R51: 0
Q52: Definitiva | R52: 0
Q53: Herança | R53: 3222.52
Q54: Temporária | R54: 0
R55: 3222.52

Sheet QUADRO08 - CONTINENTE
A1: QUADRO 8 - N.º DE CANDIDATURAS, ÁREAS (HA) E ANIMAIS DECLARADOS, POR MEDIDA MAA - PU2017
A3: CONTINENTE
A4: MEDIDAS AGRO-AMBIENTAIS | K4: CANDIDATURAS
K5: N.º | L5: ÁREA | M5: ANIMAIS
L6: (HA) | M6: CN
A7: 7.1.1 | B7: CONVERSÃO PARA AGRICULTURA BIOLÓGICA | K7: 945 | L7: 34619.63 | M7: -
A8: 7.1.2 | B8: MANUTENÇÃO EM AGRICULTURA BIOLÓGICA | K8: 2117 | L8: 175690.11 | M8: -
A9: 7.2.1 | B9: PRODUÇÃO INTEGRADA | K9: 14025 | L9: 807337 | M9: -
A10: 7.3.1 | B10: PAGAMENTOS NATURA | K10: 5865 | L10: 342878.55 | M10: -
A11: 7.3.2.1 | B11: APOIOS ZONAIS DE CARÁCTER AGROAMBIENTAL - GESTÃO DE PASTOREIO EM ÁREAS DE BALDIO - AZ PENEDA/GERÊS | K11: 43 | L11: 29647.26 | M11: -
A12: 7.3.2.2 | B12: APOIOS ZONAIS DE CARÁCTER AGROAMBIENTAL - MANUTENÇÃO DE SOCALCOS - AZ PENEDA/GERÊS | K12: 600 | L12: 1140.13 | M12: -
A13: 7.3.2.3 | B13: APOIOS ZONAIS DE CARÁCTER AGROAMBIENTAL-CONSERVAÇÃO DOS SOUTOS NOTÁVEIS-AZ MONTESINHO/NOGUEIRA | K13: 210 | L13: 323.51 | M13: -
A14: 7.3.2.4.1 | B14: APOIOS ZONAIS DE CARÁCTER AGROAMBIENTAL - MANUT. DE ROTAÇÃO DE SEQUEIRO CEREAL-POUSIO-OUTRAS AZ | K14: 134 | L14: 1250.75 | M14: -
A15: 7.3.2.4.2 | B15: APOIOS ZONAIS DE CARÁCTER AGROAMBIENTAL - MANUT.ROTAÇÃO DE SEQUEIRO CEREAL-POUSIO - AZ CASTRO VERDE | K15: 188 | L15: 31711.28 | M15: -
A16: 7.3.2.4.3 | B16: APOIOS ZONAIS DE CARÁCTER AGROAMBIENTAL - MANUT.ROTAÇÃO DE SEQUEIRO CEREAL-POUSIO-ÁREAS ESTEPÁRIAS | K16: 52 | L16: 5028.77 | M16: -
A17: 7.4.1 | B17: CONSERVAÇÃO DO SOLO - SEMENTEIRA DIRETA OU MOBILIZAÇÃO NA LINHA | K17: 204 | L17: 17287.75 | M17: -
A18: 7.4.2 | B18: CONSERVAÇÃO DO SOLO - ENRELVAMENTO DA ENTRELINHA DE CULTURAS PERMANENTES | K18: 2118 | L18: 32198.73 | M18: -
A19: 7.5.1 | B19: USO EFICIENTE DA ÁGUA NA AGRICULTURA | K19: 825 | L19: 76738.06 | M19: -
A20: 7.6.1.1 | B20: CULTURAS PERMANENTES TRADICIONAIS - OLIVAL TRADICIONAL | K20: 26750 | L20: 96121.72 | M20: -
A21: 7.6.1.2 | B21: CULTURAS PERMANENTES TRADICIONAIS - FIGUEIRAL EXTENSIVO DE SEQUEIRO | K21: 4 | L21: 6.78 | M21: -
A22: 7.6.1.3 | B22: CULTURAS PERMANENTES TRADICIONAIS - POMAR TRADICIONAL DE SEQUEIRO DO ALGARVE | K22: 799 | L22: 4186.7 | M22: -
A23: 7.6.1.4 | B23: CULTURAS PERMANENTES TRADICIONAIS - AMENDOAL EXTENSIVO DE SEQUEIRO | K23: 1134 | L23: 1909.45 | M23: -
A24: 7.6.1.5 | B24: CULTURAS PERMANENTES TRADICIONAIS - CASTANHEIRO EXTENSIVO DE SEQUEIRO | K24: 4376 | L24: 11955.37 | M24: -
A25: 7.6.2 | B25: CULTURAS PERMANENTES TRADICIONAIS - DOURO VINHATEIRO | K25: 5729 | L25: 13899.27 | M25: -
A26: 7.7.1.1 | B26: PASTOREIO EXTENSIVO - APOIO À MANUTENÇÃO DE LAMEIROS DE ALTO VALOR NATURAL - REGADIO | K26: 3379 | L26: 10262.54 | M26: -
A27: 7.7.1.2 | B27: PASTOREIO EXTENSIVO - APOIO À MANUTENÇÃO DE LAMEIROS DE ALTO VALOR NATURAL - SEQUEIRO | K27: 2280 | L27: 8098.04 | M27: -
A28: 7.7.2 | B28: PASTOREIO EXTENSIVO -APOIO À MANUTENÇÃO DE SISTEMAS AGROSILVOPASTORIS SOB MONTADO | K28: 1536 | L28: 209658.74 | M28: -
A29: 7.7.3 | B29: PASTOREIO EXTENSIVO - APOIO À PROTEÇÃO DO LOBO IBÉRICO | K29: 2663 | L29: 36587.09 | M29: -
A30: 7.8.1 | B30: RECURSOS GENÉTICOS - MANUTENÇÃO DE RAÇAS AUTÓCTONES AMEAÇADAS | K30: 5297 | L30: - | M30: 78477.3
A31: 7.8.2 | B31: UTILIZAÇÃO DE VARIEDADES VEGETAIS TRADICIONAIS NACIONAIS EM SITUAÇÃO DE EROSÃO GENÉTICA | K31: 0 | L31: 0 | M31: -
A32: 7.9.1 | B32: MOSAICO AGROFLORESTAL | K32: 485 | L32: 3049.15 | M32: -
A33: 7.10.2 | B33: SILVOAMBIENTAIS - MANUTENÇÃO E RECUPERAÇÃO DE GALERIAS RIPÍCOLAS | K33: 14 | L33: 152.62 | M33: -
A34: 7.12.1 | B34: APOIO AGROAMBIENTAL À APICULTURA | K34: 33 | L34: 1719.83 | M34: -

Sheet QUADRO08 - MADEIRA
A1: QUADRO 8 - N.º DE CANDIDATURAS, ÁREAS (HA) E ANIMAIS DECLARADOS, POR MEDIDA MAA - PU2017
A3: MADEIRA
A4: MEDIDAS AGRO-AMBIENTAIS | K4: CANDIDATURAS
K5: N.º | L5: ÁREA | M5: ANIMAIS
L6: (HA) | M6: CN
A7: 7.8.1 | B7: RECURSOS GENÉTICOS - MANUTENÇÃO DE RAÇAS AUTÓCTONES AMEAÇADAS | K7: 0 | L7: - | M7: 0
A8: 10.1.1 | B8: MANUTENÇÃO DE MUROS DE SUPORTE DE TERRAS | K8: 1691 | L8: 654.35 | M8: -
A9: 10.1.2 | B9: PRESERVAÇÃO DE POMARES DE FRUTOS FRESCOS E VINHAS TRADICIONAIS | K9: 35 | L9: 25.82 | M9: -
A10: 10.1.3 | B10: PROTEÇÃO E REFORÇO DA BIODIVERSIDADE | K10: 0 | L10: 0 | M10: -
A11: 11.1 | B11: APOIAR A CONVERSÃO DOS SISTEMAS DE PRODUÇÃO PARA A AGRICULTURA BIOLÓGICA | K11: 26 | L11: 17.08 | M11: -
A12: 11.2 | B12: APOIAR A MANUTENÇÃO DOS SISTEMAS DE PRODUÇÃO AGRÍCOLA EM AGRICULTURA BIOLÓGICA | K12: 76 | L12: 79.09 | M12: -
A13: 12.2 | B13: PAGAMENTOS NATURA 2000 NA FLORESTA | K13: 13 | L13: 425.86 | M13: -
A14: 15.1 | B14: PAGAMENTOS PARA COMPROMISSOS AMBIENTAIS NAS FLORESTAS | K14: 0 | L14: 0 | M14: -

Sheet QUADRO09
A1: QUADRO 9 - N.º DE CANDIDATURAS PU E POR REGIÃO - PU2017/PU2016 | AA1: GRÁFICO 9 - NÚMERO DE CANDIDATURAS PU, POR REGIÃO - PU2017
AA2: GRÁFICO 10 - NÚMERO DE CANDIDATURAS PU, POR REGIÃO - PU2016
B4: 2017 | D4: 2016 | F4: Variação
A5: REGIÃO | B5: N.º | C5: % | D5: N.º | E5: % | F5: %
A6: Norte | B6: 88833 | C6: =+B6/$B$12 -> 0.4903322312 | D6: 88678 | E6: =+D6/$D$12 -> 0.4921825135 | F6: =(+B6-D6)/D6 -> 0.001747896885
A7: Centro | B7: 42733 | C7: =+B7/$B$12 -> 0.235873687 | D7: 42738 | E7: =+D7/$D$12 -> 0.2372053526 | F7: =(+B7-D7)/D7 -> -0.0001169919042
A8: Lisboa e Vale do Tejo | B8: 10622 | C8: 0.05863033963 | D8: 10555 | E8: 0.05858258452 | F8: 0.006347702511
A9: Alentejo | B9: 23104 | C9: 0.1275273364 | D9: 22593 | E9: 0.125396147 | F9: 0.02261762493
A10: Algarve | B10: 4526 | C10: 0.02498219894 | D10: 4409 | E10: 0.02447092517 | F10: 0.02653662962
A11: Madeira | B11: 11351 | C11: 0.06265420685 | D11: 11200 | E11: 0.06216247717 | F11: 0.01348214286
A12: TOTAL | B12: 181169 | C12: =SUM(C6:C11) -> 1 | D12: 180173 | E12: =SUM(E6:E11) -> 1 | F12: 0.005528020292

Sheet QUADRO10
A1: QUADRO 10 - N.º DE CANDIDATURAS RPB, ÁREA (HA) E POR REGIÃO - PU2017 | AA1: GRÁFICO 11 - NÚMERO DE CANDIDATURAS RPB, POR REGIÃO - PU2017
AA2: GRÁFICO 12 - ÁREA RPB, POR REGIÃO - PU2017
A4: REGIÃO | B4: 2017
B5: CANDIDATURAS | D5: ÁREA
B6: N.º | C6: % | D6: (HA) | E6: %
A7: Norte | B7: 44192 | C7: =+B7/$B$12 -> 0.5065101779 | D7: 381634.62 | E7: =+D7/$D$12 -> 0.1337955419
A8: Centro | B8: 18361 | C8: =+B8/$B$12 -> 0.2104460847 | D8: 308095.91 | E8: =+D8/$D$12 -> 0.1080139408
A9: Lisboa e Vale do Tejo | B9: 6217 | C9: 0.07125664772 | D9: 296571.84 | E9: 0.1039737696
A10: Alentejo | B10: 16128 | C10: 0.1848523748 | D10: 1817036.68 | E10: 0.6370266075
A11: Algarve | B11: 2350 | C11: 0.02693471484 | D11: 49032.67 | E11: 0.01719014028
A12: TOTAL | B12: 87248 | C12: =SUM(C7:C11) -> 1 | D12: 2852371.72 | E12: =SUM(E7:E11) -> 1

Sheet QUADRO11
A1: QUADRO 11 - N.º DE CANDIDATURAS RPA, ÁREA (HA), POR REGIÃO - PU2017 | AA1: GRÁFICO 13 - NÚMERO DE CANDIDATURAS RPA, POR REGIÃO - PU2017
AA2: GRÁFICO 14 - ÁREA RPA, POR REGIÃO - PU2017
A4: REGIÃO | B4: 2017
B5: CANDIDATURAS | D5: ÁREA
B6: N.º | C6: % | D6: (HA) | E6: %
A7: Norte | B7: 34867 | C7: =+B7/$B$12 -> 0.5528740189 | D7: 84062.03 | E7: =+D7/$D$12 -> 0.548485044
A8: Centro | B8: 19944 | C8: =+B8/$B$12 -> 0.3162451439 | D8: 41213.94 | E8: =+D8/$D$12 -> 0.2689112991
A9: Lisboa e Vale do Tejo | B9: 2972 | C9: 0.04712598113 | D9: 7918.35 | E9: 0.05166537792
A10: Alentejo | B10: 4244 | C10: 0.06729564735 | D10: 14664.79 | E10: 0.09568431775
A11: Algarve | B11: 1038 | C11: 0.01645920875 | D11: 5403.1 | E11: 0.03525396117
A12: TOTAL | B12: 63065 | C12: =SUM(C7:C11) -> 1 | D12: 153262.21 | E12: =SUM(E7:E11) -> 1

Sheet QUADRO12
A1: QUADRO 12 - N.º DE CANDIDATURAS MZD, ÁREA (HA) E POR REGIÃO - PU2017/PU2016 | AA1: GRÁFICO 15 - NÚMERO DE CANDIDATURAS MZD, POR REGIÃO - PU2017
AA2: GRÁFICO 16 - ÁREA MZD, POR REGIÃO - PU2017
AA3: GRÁFICO 17 - NÚMERO DE CANDIDATURAS MZD, POR REGIÃO - PU2016
A4: REGIÃO | B4: 2017 | F4: 2016 | J4: Variação | AA4: GRÁFICO 18 - ÁREA MZD, POR REGIÃO - PU2016
B5: CANDIDATURAS | D5: ÁREA | F5: CANDIDATURAS | H5: ÁREA | J5: CANDIDATURAS | K5: ÁREA
B6: N.º | C6: % | D6: (HA) | E6: % | F6: N.º | G6: % | H6: (HA) | I6: % | J6: % | K6: %
A7: Norte | B7: 69860 | C7: =+B7/$B$13 -> 0.5213938666 | D7: 446467.06 | E7: =+D7/$D$13 -> 0.1768611375 | F7: 69274 | G7: =+F7/$F$13 -> 0.522530813 | H7: 435202.53 | I7: =+H7/$H$13 -> 0.1772741239 | J7: =(+B7-F7)/F7 -> 0.008459162168 | K7: =(+D7-H7)/H7 -> 0.0258834203
A8: Centro | B8: 27346 | C8: =+B8/$B$13 -> 0.2040944271 | D8: 294769.9 | E8: =+D8/$D$13 -> 0.1167686141 | F8: 27197 | G8: =+F8/$F$13 -> 0.2051458054 | H8: 289311.79 | I8: =+H8/$H$13 -> 0.1178474171 | J8: =(+B8-F8)/F8 -> 0.005478545428 | K8: =(+D8-H8)/H8 -> 0.01886584021
A9: Lisboa e Vale do Tejo | B9: 2264 | C9: 0.01689716166 | D9: 91499.23 | E9: 0.03624602877 | F9: 2112 | G9: 0.01593072548 | H9: 85438.59 | I9: 0.034802305 | J9: 0.07196969697 | K9: 0.07093562757
A10: Alentejo | B10: 19800 | C10: 0.1477755305 | D10: 1644134.05 | E10: 0.6512987057 | F10: 19525 | G10: 0.1472762382 | H10: 1599541.18 | I10: 0.6515524192 | J10: 0.01408450704 | K10: 0.02787853827
A11: Algarve | B11: 3551 | C11: 0.02650257114 | D11: 44234.66 | E11: 0.017522888 | F11: 3467 | G11: 0.02615143241 | H11: 42182.17 | I11: 0.01718236158 | J11: 0.02422843957 | K11: 0.04865776227
A12: Madeira | B12: 11166 | C12: =+B12/$B$13 -> 0.08333644309 | D12: 3288.34 | E12: =+D12/$D$13 -> 0.001302625894 | F12: 10999 | G12: 0.08296498559 | H12: 3293.03 | I12: 0.001341373195 | J12: 0.01518319847 | K12: -0.001424220247
A13: TOTAL | B13: 133987 | C13: =SUM(C7:C12) -> 1 | D13: 2524393.24 | E13: =SUM(E7:E11) -> 0.9986973741 | F13: 132574 | G13: =SUM(G7:G12) -> 1 | H13: 2454969.29 | I13: =SUM(I7:I12) -> 1 | J13: 0.01065819844 | K13: 0.02827894845

Sheet QUADRO13
A1: QUADRO 13 - N.º DE CANDIDATURAS MAA, ÁREA (HA) E ANIMAIS (CN), POR REGIÃO - PU2017/PU2016 | AA1: GRÁFICO 19 - NÚMERO DE CANDIDATURAS MAA, POR REGIÃO - PU2017
AA2: GRÁFICO 20 - ÁREA MAA, POR REGIÃO - PU2017
AA3: GRÁFICO 21 - ANIMAIS MAA, POR REGIÃO - PU2017
A4: REGIÃO | B4: 2017 | H4: 2016 | N4: Variação | AA4: GRÁFICO 22 - NÚMERO DE CANDIDATURAS MAA, POR REGIÃO - PU2016
B5: CANDIDATURAS | D5: ÁREA | F5: ANIMAIS | H5: CANDIDATURAS | J5: ÁREA | L5: ANIMAIS | N5: CANDIDATURAS | O5: ÁREA | P5: ANIMAIS | AA5: GRÁFICO 23 - ÁREA MAA, POR REGIÃO - PU2016
B6: N.º | C6: % | D6: (HA) | E6: % | F6: (CN) | G6: % | H6: N.º | I6: % | J6: (HA) | K6: % | L6: (CN) | M6: % | N6: % | O6: % | P6: % | AA6: GRÁFICO 24 - ANIMAIS MAA, POR REGIÃO - PU2016
A7: Norte | B7: 29134 | C7: =+B7/$B$13 -> 0.4927943166 | D7: 192142.08 | E7: =+D7/$D$13 -> 0.1356945176 | F7: 33797.47 | G7: =+F7/$F$13 -> 0.4306655555 | H7: 29506 | I7: =+H7/$H$13 -> 0.4933206266 | J7: 192136.41 | K7: =+J7/$J$13 -> 0.1364112728 | L7: 35591.25 | M7: =+L7/$L$13 -> 0.4267768805 | N7: =(+B7-H7)/H7 -> -0.01260760523 | O7: =(+D7-J7)/J7 -> 2.951028387e-05 | P7: =(+F7-L7)/L7 -> -0.05039946616
A8: Centro | B8: 10935 | C8: 0.1849627876 | D8: 137405.8 | E8: 0.09703867965 | F8: 7948.36 | G8: 0.1012822816 | H8: 11371 | I8: 0.1901155306 | J8: 137297 | K8: 0.09747688388 | L8: 9211.51 | M8: 0.1104557863 | N8: =(+B8-H8)/H8 -> -0.03834315364 | O8: =(+D8-J8)/J8 -> 0.0007924426608 | P8: =(+F8-L8)/L8 -> -0.1371273548
A9: Lisboa e Vale do Tejo | B9: 3644 | C9: 0.06163734777 | D9: 106145.23 | E9: 0.07496185001 | F9: 5767.55 | G9: 0.0734932267 | H9: 3690 | I9: 0.06169433716 | J9: 108014.98 | K9: 0.07668749982 | L9: 6439.86 | M9: 0.07722075965 | N9: -0.01246612466 | O9: -0.01731009903 | P9: -0.1043982323
A10: Alentejo | B10: 12398 | C10: 0.2097090663 | D10: 964638.03 | E10: 0.6812463577 | F10: 30157.7 | G10: 0.3842856469 | H10: 12233 | I10: 0.2045275953 | J10: 955291.79 | K10: 0.6782294361 | L10: 31094.53 | M10: 0.3728564328 | N10: 0.01348810594 | O10: 0.009783649454 | P10: -0.03012845025
A11: Algarve | B11: 1248 | C11: 0.02110960758 | D11: 14506.62 | E11: 0.01024486049 | F11: 806.21 | G11: 0.01027316179 | H11: 1227 | I11: 0.02051462106 | J11: 14565.06 | K11: 0.01034076973 | L11: 1058.3 | M11: 0.01269014077 | N11: 0.01711491443 | O11: -0.004012341865 | P11: -0.238202778
A12: Madeira | B12: 1761 | C12: 0.02978687415 | D12: 1152.24 | E12: 0.0008137345603 | F12: 0 | G12: 0 | H12: 1784 | I12: 0.02982728929 | J12: 1203.06 | K12: 0.0008541376717 | L12: 0 | M12: 0 | N12: =(+B12-H12)/H12 -> -0.01289237668 | O12: -0.04224228218 | P12: =IFERROR((+F12-L12)/L12, "") -> 
A13: TOTAL | B13: 59120 | C13: =SUM(C7:C12) -> 1 | D13: 1415990 | E13: =SUM(E7:E12) -> 1 | F13: 78477.3 | G13: =SUM(G7:G12) -> 0.9999998726 | H13: 59811 | I13: =SUM(I7:I11) -> 0.9701727107 | J13: 1408508.3 | K13: 0.9991458623 | L13: 83395.45 | M13: 1 | N13: -0.0115530588 | O13: 0.005311789785 | P13: -0.0589738409

Sheet QUADRO14
B1: QUADRO 14 - N.º DE CANDIDATURAS PU POR ENTIDADE RECETORA - PU2017/PU2016
B4: ENTIDADE | C4: 2017 | G4: 2016 | K4: Variação
C5: CONTINENTE | E5: MADEIRA | G5: CONTINENTE | I5: MADEIRA | K5: CONTINENTE | L5: MADEIRA
C6: N.º | D6: % | E6: N.º | F6: % | G6: N.º | H6: % | I6: N.º | J6: % | K6: % | L6: %
A7: BEN_00 | B7: Beneficiário IFAP | C7: 2515 | D7: =C7/$C$15 -> 0.01480997303 | E7: 564 | F7: =IFERROR(E7/$E$15,"-") -> 0.04968725222 | G7: 2288 | H7: =+G7/$G$15 -> 0.01354062483 | I7: 253 | J7: =+I7/$I$15 -> 0.02258928571 | K7: =(+C7-G7)/G7 -> 0.09921328671 | L7: =(+E7-I7)/I7 -> 1.229249012
A8: 00-0000 | B8: DRAP | C8: 2007 | D8: =C8/$C$15 -> 0.01181853514 | E8: - | F8: =IFERROR(E8/$E$15,"-") -> - | G8: 1902 | H8: =+G8/$G$15 -> 0.0112562362 | I8: - | J8: - | K8: =(+C8-G8)/G8 -> 0.05520504732 | L8: -
A9: 09-0000 | B9: Madeira - DRADR | C9: - | D9: =IFERROR(C9/$C$15,"-") -> - | E9: 10783 | F9: 0.9499603559 | G9: - | H9: - | I9: 10945 | J9: =+I9/$I$15 -> 0.9772321429 | K9: - | L9: =(+E9-I9)/I9 -> -0.01480127912
A10: 10-0000 | B10: CAP | C10: 59472 | D10: =C10/$C$15 -> 0.3502102251 | E10: 0 | F10: 0 | G10: 60615 | H10: 0.3587259503 | I10: 1 | J10: =+I10/$I$15 -> 8.928571429e-05 | K10: =(+C10-G10)/G10 -> -0.01885671863 | L10: =(+E10-I10)/I10 -> -1
A11: 11-0000 | B11: CONFAGRI | C11: 74550 | D11: =C11/$C$15 -> 0.4389993994 | E11: - | F11: - | G11: 72923 | H11: 0.4315659898 | I11: - | J11: - | K11: 0.02231120497 | L11: -
A12: 22-0000 | B12: AJAP | C12: 18831 | D12: =C12/$C$15 -> 0.110889305 | E12: - | F12: - | G12: 18690 | H12: 0.1106093873 | I12: - | J12: - | K12: 0.007544141252 | L12: -
A13: 24-0000 | B13: CNA | C13: 11356 | D13: =C13/$C$15 -> 0.06687159194 | E13: - | F13: - | G13: 11439 | H13: 0.06769720606 | I13: - | J13: - | K13: -0.00725587901 | L13: -
A14: 79-0000 | B14: CNJ | C14: 1085 | D14: =C14/$C$15 -> 0.006389193136 | E14: - | F14: - | G14: 1116 | H14: 0.00660460547 | I14: - | J14: - | K14: -0.02777777778 | L14: -
B15: TOTAL | C15: 169818 | D15: =SUM(D7:D14) -> 0.9999882227 | E15: 11351 | F15: =SUM(F7:F14) -> 0.9996476081 | G15: 168973 | H15: =SUM(H7:H14) -> 1 | I15: 11200 | J15: =SUM(J7:J14) -> 0.9999107143 | K15: 0.005000798944 | L15: =(+E15-I15)/I15 -> 0.01348214286

Sheet QUADRO15
A1: QUADRO 15 - Nº DE ATENDIMENTOS DE PARCELÁRIO, NO PERÍODO DE CANDIDATURAS DO PU2017, POR ENTIDADE (ACUMULADO)
A4: ENTIDADE | B4: N.º DE ATENDIMENTOS PARCELÁRIO
B5: 01-03-2017 A 26-03-2017 | C5: 01-03-2017 A 30-04-2017 | D5: 01-03-2017 A 28-05-2017 | E5: 01-03-2017 A 26-06-2017
A7: DRAP NORTE | B7: 1766 | C7: 4806 | D7: 7610 | E7: 8807
A8: DRAP CENTRO | B8: 846 | C8: 2194 | D8: 3563 | E8: 4039
A9: DRAP LVT | B9: 362 | C9: 903 | D9: 1599 | E9: 1839
A10: DRAP ALENTEJO | B10: 136 | C10: 379 | D10: 715 | E10: 838
A11: DRAP ALGARVE | B11: 109 | C11: 300 | D11: 534 | E11: 626
A12: DRACA AÇORES | B12: 717 | C12: 1451 | D12: 2041 | E12: 2263
A13: DRADR MADEIRA | B13: 543 | C13: 1409 | D13: 2136 | E13: 2373
A14: CNA | B14: 1385 | C14: 4609 | D14: 8024 | E14: 9089
A15: AJAP | B15: 2683 | C15: 7354 | D15: 11793 | E15: 13411
A16: CNJ | B16: 121 | C16: 282 | D16: 402 | E16: 435
A17: CAP | B17: 7920 | C17: 23417 | D17: 39890 | E17: 44755
A18: CONFAGRI | B18: 8279 | C18: 25352 | D18: 41171 | E18: 45522
A19: IFAP | B19: 2 | C19: 9 | D19: 20 | E19: 26
B20: =SUM(B7:B19) -> 24869 | C20: =SUM(C7:C19) -> 72465 | D20: =SUM(D7:D19) -> 119498 | E20: =SUM(E7:E19) -> 134023

Sheet GRÁFICO25
AA1: GRÁFICO 25 - DISTRIBUIÇÃO DO ATENDIMENTO DO PARCELÁRIO, POR ENTIDADE (ACUMULADO) - PU2017

Sheet QUADRO16
A1: QUADRO 16 - Nº DE ATENDIMENTOS DE PARCELÁRIO, NO PERÍODO DE CANDIDATURAS, POR ENTIDADE - PU2017/PU2017
A4: ENTIDADE | B4: N.º DE ATENDIMENTOS PARCELÁRIO
B5: 2017 | D5: 2016 | F5: VARIAÇÃO
B6: N.º | C6: % | D6: N.º | E6: %
A7: DRAP NORTE | B7: =+QUADRO15!E7 -> 8807 | C7: =+B7/$B$20 -> 0.06571260157 | D7: 11071 | E7: =+D7/$D$20 -> 0.06401309056 | F7: =(+B7-D7)/D7 -> -0.2044982386
A8: DRAP CENTRO | B8: =+QUADRO15!E8 -> 4039 | C8: =+B8/$B$20 -> 0.03013661834 | D8: 4953 | E8: =+D8/$D$20 -> 0.02863850037 | F8: =(+B8-D8)/D8 -> -0.1845346255
A9: DRAP LVT | B9: =+QUADRO15!E9 -> 1839 | C9: 0.01372152541 | D9: 2153 | E9: 0.01244875657 | F9: -0.1458430098
A10: DRAP ALENTEJO | B10: =+QUADRO15!E10 -> 838 | C10: 0.006252658126 | D10: 1095 | E10: 0.006331346235 | F10: -0.2347031963
A11: DRAP ALGARVE | B11: =+QUADRO15!E11 -> 626 | C11: 0.00467084008 | D11: 796 | E11: 0.00460251288 | F11: -0.2135678392
A12: DRACA AÇORES | B12: =+QUADRO15!E12 -> 2263 | C12: 0.0168851615 | D12: 5108 | E12: 0.02953471833 | F12: -0.5569694597
A13: DRADR MADEIRA | B13: =+QUADRO15!E13 -> 2373 | C13: 0.01770591615 | D13: 3191 | E13: 0.01845052588 | F13: -0.256345973
A14: CNA | B14: =+QUADRO15!E14 -> 9089 | C14: 0.06781671803 | D14: 11777 | E14: 0.06809521882 | F14: -0.2282414876
A15: AJAP | B15: =+QUADRO15!E15 -> 13411 | C15: 0.1000649142 | D15: 17263 | E15: 0.09981555256 | F15: -0.2231361872
A16: CNJ | B16: =+QUADRO15!E16 -> 435 | C16: 0.003245711557 | D16: 766 | E16: 0.004429051339 | F16: -0.4321148825
A17: CAP | B17: =+QUADRO15!E17 -> 44755 | C17: 0.3339352201 | D17: 61484 | E17: 0.3555036456 | F17: -0.272087047
A18: CONFAGRI | B18: =+QUADRO15!E18 -> 45522 | C18: 0.3396581184 | D18: 53248 | E18: 0.3078826706 | F18: -0.1450946514
A19: IFAP | B19: =+QUADRO15!E19 -> 26 | C19: 0.0001939965528 | D19: 44 | E19: 0.0002544102597 | F19: -0.4090909091
B20: =+QUADRO15!E20 -> 134023 | C20: =SUM(C7:C19) -> 1 | D20: 172949 | E20: =SUM(E7:E19) -> 1 | F20: -0.2250721311

Sheet QUADRO17
A1: QUADRO 17 - COMPARAÇÃO DO Nº DE ATENDIMENTOS DE PARCELÁRIO, NO PERÍODO DE CANDIDATURAS - PU2017/PU2016 | AA1: GRÁFICO 26 - COMPARAÇÃO DO N.º DE ATENDIMENTOS DO PARCELÁRIO - PU2017/PU2016
A4: Campanha | B4: Até 28-02-2016 | C4: Até 27-03-2016 e 26-03-2017 | D4: Até 24-04-2016 e 30-04-2017 | E4: Até 29-05-2016 e 28-05-2017 | F4: Até 26-06-2016 e 26-06-2017 | G4: Até 11-07-2016
A5: 2016 | B5: 8400 | C5: 32021 | D5: 70031 | E5: 116481 | F5: 126321 | G5: 128264
A6: 2017 | C6: =+QUADRO15!B20 -> 24869 | D6: =+QUADRO15!C20 -> 72465 | E6: =+QUADRO15!D20 -> 119498 | F6: =+QUADRO15!E20 -> 134023

Sheet QUADRO18
A1: QUADRO 18 - TIPOS DE AÇÕES EFETUADAS NAS PARCELAS (ACUMULADO) - PU2017
A4: Ações Entidade | C4: Acrescentar Parcela | D4: Correção atributos alfanuméricos | E4: Eliminar Parcela | F4: Matar Parcela | G4: Nova Parcela | H4: Alterar Limites de Parcelas | I4: Alterar Ocupação do Solo | L4: Total de Ações Realizadas | M4: Total de Parcelas Alteradas | N4: Nº de Requerentes com Ação
I5: Alterar Ocupação | J5: Alterar Elegibilidade | K5: Total
A6: DRAP | B6: NORTE | C6: 3684 | D6: 3757 | E6: 4741 | F6: 203 | G6: 1501 | H6: 2776 | I6: 1013 | J6: 2160 | K6: 3104 | L6: 19766 | M6: 11321 | N6: 4380
B7: CENTRO | C7: 2126 | D7: 2457 | E7: 2817 | F7: 125 | G7: 1086 | H7: 1618 | I7: 166 | J7: 1929 | K7: 2081 | L7: 12310 | M7: 6914 | N7: 2698
B8: LISBOA E VALE DO TEJO | C8: 895 | D8: 1170 | E8: 1056 | F8: 138 | G8: 585 | H8: 648 | I8: 130 | J8: 496 | K8: 610 | L8: 5102 | M8: 2695 | N8: 1148
B9: ALENTEJO | C9: 832 | D9: 541 | E9: 829 | F9: 78 | G9: 154 | H9: 293 | I9: 6 | J9: 434 | K9: 436 | L9: 3163 | M9: 1719 | N9: 485
B10: ALGARVE | C10: 572 | D10: 456 | E10: 633 | F10: 38 | G10: 314 | H10: 221 | I10: 4 | J10: 270 | K10: 273 | L10: 2507 | M10: 1290 | N10: 370
B11: DRACA AÇORES | C11: 1099 | D11: 626 | E11: 1228 | F11: 83 | G11: 279 | H11: 517 | I11: 0 | J11: 435 | K11: 435 | L11: 4267 | M11: 2470 | N11: 1036
B12: DRADR MADEIRA | C12: 493 | D12: 790 | E12: 741 | F12: 9 | G12: 393 | H12: 356 | I12: 315 | J12: 273 | K12: 517 | L12: 3299 | M12: 1849 | N12: 1205
A13: ORGANIZAÇÕES DE AGRICULTORES | B13: CNA | C13: 4793 | D13: 3994 | E13: 5673 | F13: 203 | G13: 1786 | H13: 2808 | I13: 4334 | J13: 2560 | K13: 5982 | L13: 25239 | M13: 14005 | N13: 4385
B14: AJAP | C14: 7533 | D14: 5587 | E14: 8884 | F14: 336 | G14: 2089 | H14: 3328 | I14: 7860 | J14: 3404 | K14: 9783 | L14: 37540 | M14: 20602 | N14: 6049
B15: CNJ | C15: 360 | D15: 290 | E15: 569 | F15: 2 | G15: 128 | H15: 95 | I15: 191 | J15: 52 | K15: 219 | L15: 1663 | M15: 958 | N15: 226
B16: CAP | C16: 25438 | D16: 24630 | E16: 31130 | F16: 1044 | G16: 9702 | H16: 10986 | I16: 23590 | J16: 11975 | K16: 29886 | L16: 132816 | M16: 71544 | N16: 20520
B17: CONFAGRI | C17: 20468 | D17: 18856 | E17: 25352 | F17: 911 | G17: 8319 | H17: 13322 | I17: 21597 | J17: 14763 | K17: 31762 | L17: 118990 | M17: 66624 | N17: 20919
B18: IFAP | C18: 1 | D18: 2 | E18: 4 | F18: 0 | G18: 1 | H18: 2 | I18: 0 | J18: 3 | K18: 3 | L18: 13 | M18: 11 | N18: 9
A19: TOTAL | C19: 67750 | D19: 62759 | E19: 83000 | F19: 3170 | G19: 26337 | H19: 36692 | I19: 59104 | J19: 38655 | K19: 84637 | L19: 366675 | M19: 197406 | N19: 60305
A21: Nota:
A22: Estão excluídas as acções que resultam de visitas de campo.

Sheet QUADRO19
A1: QUADRO 19 - VISITAS DE CAMPO PARCELÁRIO NO PERÍODO DE 01-03-2017 A 26-06-2017 (ACUMULADO)
A4: ENTIDADE | C4: Marcadas | D4: Realizadas | E4: Pendentes | F4: Anuladas
A6: DRAP NORTE | C6: 3900 | D6: 3595 | E6: 19 | F6: 286
A7: DRAP CENTRO | C7: 1229 | D7: 1021 | E7: 96 | F7: 112
A8: DRAP LISBOA E VALE DO TEJO | C8: 476 | D8: 408 | E8: 11 | F8: 57
A9: DRAP ALENTEJO | C9: 1242 | D9: 621 | E9: 345 | F9: 276
A10: DRAP ALGARVE | C10: 428 | D10: 351 | E10: 9 | F10: 68
A11: DRACA AÇORES | C11: 32 | D11: 24 | E11: 4 | F11: 4
A12: DRADR MADEIRA | C12: 537 | D12: 446 | E12: 41 | F12: 50
A13: TOTAL | C13: 7844 | D13: 6466 | E13: 525 | F13: 853

Sheet QUADRO20E21
A1: QUADRO 20 - UTILIZADORES E FORMULÁRIOS IB (ACUMULADO), NO PERÍODO DE CANDIDATURAS - PU2017
C4: FORMULÁRIOS IB
B5: UTILIZADORES | C5: SUBMETIDOS
A6: Total até 26-06-2017 | B6: 7451 | C6: 65891
A8: Nota:
A9: O dia de início do período considerado na análise foi 01-03-2017
A10: O total de utilizadores corresponde à contagem dos distintos utilizadores que acederam ao sistema.
A14: QUADRO 21 - FORMULÁRIOS IB TIPO DE ALTERAÇÕES (ACUMULADO) - PU2017
B17: FORMULÁRIOS IB
A18: Total até 26-06-2017 | B18: 65891
A19: IB com Alteração de NIB | B19: 13820
A20: IB com Alteração de NIF/NIPC | B20: 7
A21: IB Novo* | B21: 8239
A22: Outros | B22: 48993
A24: Nota:
A25: O dia de início do período considerado na análise foi 01-03-2017
A27: *Criados por utilizadores externos

Sheet QUADRO22
A1: QUADRO 22 - FORMULÁRIOS IB POR ENTIDADE (ACUMULADO), NO PERÍODO DE CANDIDATURAS PU2017
B4: FORMULÁRIOS IB
A5: ENTIDADE | B5: SUBMETIDOS [1] | C5: % [2] | D5: DESMATERIAL. [3] | E5: % [4]=[3]/[1]*100
A7: Total até 26-06-2017 | B7: 65891 | C7: 100 | D7: 20797 | E7: 31.56273239
A8: Beneficiário IFAP | B8: 5618 | C8: 8.526202365 | D8: 5617 | E8: 99.98220007
A9: Norte - DRAP | B9: 1082 | C9: 1.642105902 | D9: 9 | E9: 0.831792976
A10: Centro - DRAP | B10: 1041 | C10: 1.579881926 | D10: 12 | E10: 1.152737752
A11: Lisboa e Vale do Tejo - DRAP | B11: 478 | C11: 0.7254405002 | D11: 3 | E11: 0.6276150628
A12: Alentejo - DRAP | B12: 284 | C12: 0.4310148579 | D12: 15 | E12: 5.281690141
A13: Algarve - DRAP | B13: 230 | C13: 0.3490613286 | D13: 0 | E13: 0
A14: Açores - DRACA | B14: 2545 | C14: 3.862439483 | D14: 77 | E14: 3.025540275
A15: Madeira - DRADR | B15: 4785 | C15: 7.261993292 | D15: 104 | E15: 2.173458725
A16: CAP | B16: 17618 | C16: 26.73809777 | D16: 4792 | E16: 27.1994551
A17: CONFAGRI | B17: 22815 | C17: 34.62536613 | D17: 7148 | E17: 31.33026518
A18: AJAP | B18: 5221 | C18: 7.923692158 | D18: 1780 | E18: 34.09308562
A19: CNA | B19: 2823 | C19: 4.284348394 | D19: 1120 | E19: 39.67410556
A20: CNJ | B20: 316 | C20: 0.4795799123 | D20: 87 | E20: 27.53164557
A21: AG - MAR2020 | B21: 10 | C21: 0.0151765795 | D21: 3 | E21: 30
A22: Federação Minha Terra | B22: 79 | C22: 0.1198949781 | D22: 30 | E22: 37.97468354
A23: DGAV | B23: 184 | C23: 0.2792490628 | D23: 0 | E23: 0
A24: IFAP | B24: 762 | C24: 1.156455358 | D24: 0 | E24: 0
A26: Nota:
A27: O dia de início do período considerado na análise foi 01-03-2017
